Workbook

Sheet Tool
A2: Kies uw taal / Choisissez votre langue : | B2: Ú | C2: FR | D2: =MATCH(C2,Translations!$C$1:$AA$1,0)+1 -> 3
A4: =VLOOKUP("title_tool",Translations,LANG,FALSE) -> Outil de pré-dimensionnement d'un grand système solaire thermique de production d'eau chaude
A5: =VLOOKUP("ALGEMENE INFORMATIE",Translations,LANG,FALSE) -> INFORMATION GENERALES | F5: =VLOOKUP("BEREKENINGSHYPOTHESEN",Translations,LANG,FALSE) -> HYPOTHESES DE CALCUL
A7: =VLOOKUP("[Vestigingsnaam] :",Translations,LANG,FALSE) -> [Nom Etablissement] : | G7: =VLOOKUP("Gebruikte energiedrager voor de warmwaterproductie",Translations,LANG,FALSE) -> Vecteur énergétique utilisé pour la production d'eau chaude | H7: =IF(ISBLANK(C43),'Eco Data'!A5,Tool!C43) -> 3-Gaz naturel (RBC)
A8: =VLOOKUP("[Sector] :",Translations,LANG,FALSE) -> [Secteur] : | G8: =VLOOKUP("Warmwaterketelrendement",Translations,LANG,FALSE) -> Rendement utile de production d'eau chaude par l'appoint | H8: =IF(Calculs!B25,Calculs!B26,Calculs!C26) -> 75%
A9: =VLOOKUP("[Adres] : ",Translations,LANG,FALSE) -> [Adresse] :
A10: =VLOOKUP("[Gemeente] :",Translations,LANG,FALSE) -> [Localité] : | G10: =VLOOKUP("Referentiewarmwaterverbruik",Translations,LANG,FALSE) -> Consommation d'eau chaude de référence | H10: =IF(OR(ISBLANK(C32),ISBLANK(C33)),"",Calculs!C6) -> 0.18 | I10: =VLOOKUP("m³/dag op 60°C",Translations,LANG,FALSE) -> m³/jour à 60°C
A11: =VLOOKUP("[Postcode] : ",Translations,LANG,FALSE) -> [Code Postal] : | H11: =IF(OR(ISBLANK(C49),C49=0),"",Calculs!B16) -> 1.37 | I11: =IF(OR(ISBLANK(C49),C49=0),"",VLOOKUP("m³/dag warm waterverbruik op 60°C",Translations,LANG,FALSE) ) -> m³/jour de puisage à 60°C
A12: =VLOOKUP("[Contactpersoon] :",Translations,LANG,FALSE) -> [Personne de contact] : | G12: =VLOOKUP("Gelijkwaardige warmwaterverbruik per dag",Translations,LANG,FALSE) -> Consommation d'eau chaude en équivalent journalier | H12: =IF(OR(ISBLANK(C49),C49=0,Calculs!B14=FALSE),Calculs!C6,Calculs!B15) -> 1.37 | I12: =VLOOKUP("m³/dag op 60°C",Translations,LANG,FALSE) -> m³/jour à 60°C
A13: =VLOOKUP("[Functie] :",Translations,LANG,FALSE) -> [Fonction] : | G13: =VLOOKUP("Profiel van het warmwaterverbruik",Translations,LANG,FALSE) -> Profil de puisage de l'eau chaude | H13: =IF(ISBLANK(C53),'Tech Data'!B47,Tool!C53) -> A-7 jours sur 7 toute l'année
A14: =VLOOKUP("[Tel.]",Translations,LANG,FALSE) -> [Tel.] | G14: =VLOOKUP("Actualisatievoet",Translations,LANG,FALSE) -> Taux d'actualisation | H14: ='Financiële balans'!C4 -> 5.5%
A15: =VLOOKUP("[E-mail] :",Translations,LANG,FALSE) -> [E-mail] : | G15: =VLOOKUP("BTW-percentage voor de economische balans",Translations,LANG,FALSE) -> Taux de TVA pour le bilan économique | H15: =IF(ISBLANK(C57)*OR(C57=0),'Eco Data'!B16,Tool!C57) -> 21%
G16: =VLOOKUP("Eenheidsprijs van de brandstof",Translations,LANG,FALSE) -> Prix unitaire du combustible | H16: =IF(ISBLANK(C43),'Eco Data'!R5,IF(ISNUMBER(C62),C62,IF(H15=0,LOOKUP(Calculs!B17,SourceEnergie,PrixDéfaut),LOOKUP(Calculs!B17,SourceEnergie,PrixDéfautTVAc)))) -> 0.067 | I16: =IF(ISBLANK(C43),'Eco Data'!S5,IF(H15=0,LOOKUP(Calculs!B17,SourceEnergie,UnitéPrixDéfaut),LOOKUP(Calculs!B17,SourceEnergie,UnitéPrixDéfautTVAc))) -> EUR/kWh TVAc
A17: =VLOOKUP("De Quickscan Zonthermische Energie is een tool die ontwikkeld is voor het Brussels Hoofdstedelijk Gewest en het Waals Gewest",Translations,LANG,FALSE) -> Le Quick Scan Solaire thermique est un outil développé pour la Région wallonne et la Région de Bruxelles-Capitale | G17: =VLOOKUP("Brandstofprijs per kWh",Translations,LANG,FALSE) -> Prix par kWh de combustible | H17: =IF(ISBLANK(C43),'Eco Data'!W5,H16*Calculs!C22) -> 0.067 | I17: =IF(ISBLANK(C43),'Eco Data'!X5,IF(H15=0,LOOKUP(Calculs!B17,SourceEnergie,UnitéPrix_kWh),LOOKUP(Calculs!B17,SourceEnergie,UnitéPrix_kWhTVAc))) -> EUR/kWh TVAc
C18: =VLOOKUP("Concept en ontwikkeling : 3E nv",Translations,LANG,FALSE) -> Conception & Développement : 3E s.a. | G18: =VLOOKUP("Subsidiepercentage gebruikt voor de berekening",Translations,LANG,FALSE) -> Taux de subside utilisé pour le calcul | H18: =Calculs!B28/100 -> 0%
A19: =VLOOKUP("version",Translations,LANG,FALSE) &" 2015" -> Version 2015 | C19: =VLOOKUP("Aanpassingen:",Translations,LANG,FALSE) -> Modifications: | D19: CVBA CENERGIE | G19: =VLOOKUP("Indicatief subsidiepercentage (Energiepremie) voor het beschouwde systeem",Translations,LANG,FALSE) -> Taux de subside (Prime Energie) indicatif en RBC pour le système considéré | H19: =IFERROR(Calculs!C29/H54,"") -> 50%
C20: =VLOOKUP("Veld",Translations,LANG,FALSE) -> Champ | G20: =VLOOKUP("Korting op de persoonsbelasting voor een energiebesparende investering",Translations,LANG,FALSE) -> Réduction d'IPP pour investissement économiseur d'énergie | H20: =IF(AND(ISTEXT(Tool!D34),(C34>3)),C68/100,"") -> 
C21: =VLOOKUP("Verplicht",Translations,LANG,FALSE) -> Obligatoire | G21: =VLOOKUP("Jaarlijkse prijsstijging van de energiedrager",Translations,LANG,FALSE) -> Augmentation annuelle du prix du vecteur énergétique | H21: ='Financiële balans'!C5 -> 5.87%
C22: =VLOOKUP("Facultatief",Translations,LANG,FALSE) -> Facultatif | D22: =VLOOKUP(" (indien blanco, worden standaardwaarden gebruikt)",Translations,LANG,FALSE) -> (si pas rempli, les valeurs par défaut sont utilisés) | G22: =VLOOKUP("Onderhoudskost van de installatie als percentage van de investering",Translations,LANG,FALSE) -> Pourcentage de l'investissement affecté à la maintenance de l'installation | H22: =Hyp!B19 -> 0.25%
B23: Ú | C23: =VLOOKUP("Uitklaplijstje",Translations,LANG,FALSE) -> Menu Déroulant | G23: =VLOOKUP("Zonnepanelen",Translations,LANG,FALSE) -> Capteurs solaires | H23: =VLOOKUP("Vlakkeplaatcollectoren",Translations,LANG,FALSE) -> Atmosphériques plans vitrés
G24: =VLOOKUP("Oriëntatie van de panelen gebruikt in de berekening",Translations,LANG,FALSE) -> Orientation des capteurs utilisée pour le calcul | H24: =IF(ISBLANK(C37),'Tech Data'!E9,LOOKUP(Tool!C37,Toit,OrientOpt)) -> 1-Est
G25: =VLOOKUP("Hellingsgraad van de panelen gebruikt in de berekening",Translations,LANG,FALSE) -> Inclinaison des capteurs utilisée pour le calcul | H25: =IF(ISBLANK(C40),'Tech Data'!C9,LOOKUP(Calculs!B33,Toit,InclinOpt)) -> 45°
G26: =VLOOKUP("Correctiefactor",Translations,LANG,FALSE) -> Facteur Correctif | H26: =IF(ISBLANK(C37),'Tech Data'!D9,LOOKUP(Tool!C37,Toit,FactCorr)) -> 1.28 | I26: =Tool!C37 -> Toiture inclinée
G27: =VLOOKUP("Economische levensduur van de installatie",Translations,LANG,FALSE) -> Durée de vie économique de l'installation | H27: =Hyp!B9 -> 25 | I27: =VLOOKUP("jaren",Translations,LANG,FALSE) -> ans
A29: =VLOOKUP("BASISGEGEVENS",Translations,LANG,FALSE) -> DONNEES DE BASE | F29: =VLOOKUP("RESULTATEN",Translations,LANG,FALSE) -> RESULTATS
A31: =VLOOKUP("Beschrijving van de vestiging",Translations,LANG,FALSE) -> Descriptif de l'établissement | G31: =VLOOKUP("Zonnefractie",Translations,LANG,FALSE) -> Fraction solaire
A32: =VLOOKUP("Vestigingstype",Translations,LANG,FALSE) -> Type d'établissement | B32: Ú | C32: =VLOOKUP("T-Kantoren",Translations,LANG,FALSE) -> T-Bureau d'entreprise | G32: =VLOOKUP("Optimale nuttige zonnefractie",Translations,LANG,FALSE) -> Fraction solaire utile à l'optimum | H32: =IFERROR(LOOKUP(H13,ProfilHebdo,Fsol)*100,"") -> 34 | I32: %
A33: =VLOOKUP("Bezetting",Translations,LANG,FALSE) -> Fréquentation | C33: 90 | D33: =LOOKUP(C32,TypeEtablissement,UnitéConsomECS) -> Employés | G33: =VLOOKUP("Zonnefractie wanneer het dak beperkt is in oppervlakte",Translations,LANG,FALSE) -> Fraction solaire si la toiture est limitée en surface | H33: =IF(Calculs!B36,"",(LOOKUP(Tool!H13,ProfilHebdo,Fsolmax)*100)) ->  | I33: %
A34: =IF(ISTEXT(D34),VLOOKUP("Aantal wooneenheden",Translations,LANG,FALSE),"") ->  | C34: 30 | D34: =LOOKUP(C32,TypeEtablissement,UnitéHabitation) -> 0
A35: =VLOOKUP("Jaarlijkse gemiddelde bezettingsgraad",Translations,LANG,FALSE) -> Taux d'occupation annuel moyen | C35: 100 | D35: % | G35: =IF(OR(H12>0.6,0),"",VLOOKUP("Het warmwaterverbruik is onvoldoende om de installatie te dimensioneren!",Translations,LANG,FALSE)) -> 
A36: =VLOOKUP("Gebouwoppervlakte",Translations,LANG,FALSE) -> Surface du bâtiment | C36: 1,100 m² | G36: =VLOOKUP("Nuttige oppervlakte van de zonnepanelen",Translations,LANG,FALSE) -> Surface optique de capteurs solaires
A37: =VLOOKUP("Daktype",Translations,LANG,FALSE) -> Toiture | B37: Ú | C37: =VLOOKUP("Hellend dak",Translations,LANG,FALSE) -> Toiture inclinée | G37: =VLOOKUP("Optimale oppervlakte van de zonnepanelen",Translations,LANG,FALSE) -> Surface de capteurs à l'optimum | H37: =LOOKUP(H13,ProfilHebdo,Scoll) -> 23 | I37: m²
A38: =VLOOKUP("Maximale nuttige dakoppervlakte",Translations,LANG,FALSE) -> Surface maximale utile de toiture | G38: =VLOOKUP("Corresponderende oppervlakte plat dak",Translations,LANG,FALSE) -> Surface de toiture plate correspondante | H38: =H37*'Tech Data'!C24 -> 77 | I38: =VLOOKUP("m² (zonder schaduw of obstakels)",Translations,LANG,FALSE) -> m² (non ombragée, sans obstacles)
A39: =VLOOKUP("Dakoriëntatie",Translations,LANG,FALSE) -> Orientation de la toiture | B39: Ú | C39: =VLOOKUP("1-Oost",Translations,LANG,FALSE) -> 1-Est | G39: =VLOOKUP("Corresponderende oppervlakte hellend dak",Translations,LANG,FALSE) -> Surface de toiture inclinée correspondante | H39: =H37*'Tech Data'!C23 -> 28 | I39: =VLOOKUP("m² (zonder schaduw of obstakels)",Translations,LANG,FALSE) -> m² (non ombragée, sans obstacles)
A40: =VLOOKUP("Hellingsgraad van het dak",Translations,LANG,FALSE) -> Inclinaison de la toiture | B40: Ú | C40: 45° | G40: =VLOOKUP("Max installeerbare oppervlakte panelen bij beperkte dakoppervlakte",Translations,LANG,FALSE) -> Surface de capteurs maximale installable (si contrainte en toiture) | H40: =IF(Calculs!B36,H37,LOOKUP(H13,ProfilHebdo,Scollmax)) -> 23 | I40: m²
A42: =VLOOKUP("Warmwaterproductie",Translations,LANG,FALSE) -> Production d'eau chaude | G42: =VLOOKUP("Zonneopslag",Translations,LANG,FALSE) -> Stockage solaire
A43: =VLOOKUP("Gebruikte energiedrager voor de warmwaterproductie",Translations,LANG,FALSE) -> Vecteur énergétique utilisé pour la production d'eau chaude | B43: Ú | C43: =VLOOKUP("3-Aardgas (BHG)",Translations,LANG,FALSE) -> 3-Gaz naturel (RBC) | G43: =VLOOKUP("Totaal volume zonneopslag",Translations,LANG,FALSE) -> Volume total de stockage solaire | H43: =IFERROR(IF(Calculs!B36,LOOKUP(H13,ProfilHebdo,Vstock),LOOKUP(H13,ProfilHebdo,Vstockmax)),"") -> 1.32 | I43: m³
A44: =VLOOKUP("Warmwaterproductie onafhankelijk van de ruimteverwarming",Translations,LANG,FALSE) -> Production d'eau chaude indépendante du chauffage des locaux | B44: Ú | C44: =VLOOKUP("Ja",Translations,LANG,FALSE) -> Oui | G44: =VLOOKUP("Indicatief aantal opslagvaten (deelvolumes)",Translations,LANG,FALSE) -> Nombre indicatif de réservoirs (volumes partiels) | H44: =IF(Calculs!B36,LOOKUP(H13,ProfilHebdo,Nstock),"") -> 1
A45: =VLOOKUP("Type warmwaterketel",Translations,LANG,FALSE) -> Type d'appoint pour l'eau chaude | B45: Ú | C45: =VLOOKUP("C-Ketel HR PLUS",Translations,LANG,FALSE) -> C-Chaudière HR PLUS | G45: =VLOOKUP("Indicatieve benodigde oppervlakte ",Translations,LANG,FALSE) -> Surface d'encombrement des réservoirs | H45: =IFERROR(IF(Calculs!B36,LOOKUP(H13,ProfilHebdo,SurfStock),LOOKUP(H13,ProfilHebdo,SurfStockmax)),"") -> 1.60 | I45: m²
A46: =VLOOKUP("Ogenblikkelijk warmwaterketelrendement volgens onderhoudsfiche",Translations,LANG,FALSE) -> Rendement instantané de l'appoint selon fiche d'entretien | C46: 90.0 | D46: % | G46: =VLOOKUP("Gemiddeld gewicht van de volle opslagvaten",Translations,LANG,FALSE) -> Poids moyen de tous les réservoirs pleins | H46: =IFERROR(IF(Calculs!B36,LOOKUP(H13,ProfilHebdo,Mstock),LOOKUP(H13,ProfilHebdo,Mstockmax)),"") -> 1,700 | I46: kg
A48: =VLOOKUP("Warmwaterverbruik",Translations,LANG,FALSE) -> Consommation d'eau chaude | G48: =VLOOKUP("Energiebalans",Translations,LANG,FALSE) -> Bilan Energétique
A49: =VLOOKUP("Gemiddeld verbruik van warm water",Translations,LANG,FALSE) -> Consommation moyenne d'eau chaude | C49: 500.0 | D49: ="m³/" & VLOOKUP("jaar",Translations,LANG,FALSE) -> m³/an | G49: =VLOOKUP("Jaarlijkse netto zonneopbrengst",Translations,LANG,FALSE) -> Production solaire annuelle nette | H49: =IF(Calculs!B36,LOOKUP(H13,ProfilHebdo,Qsol),LOOKUP(H13,ProfilHebdo,Qsolmax)) -> 9,904 | I49: =VLOOKUP("kWh zonne-energie /jaar",Translations,LANG,FALSE) -> kWh solaires /an
A50: =VLOOKUP("Warmwateropslag- of warmwaterproductietemperatuur",Translations,LANG,FALSE) -> Température de stockage ou de production de l'eau chaude | B50: Ú | C50: 60 | D50: °C | G50: =VLOOKUP("Brandstofbesparinig",Translations,LANG,FALSE) -> Combustible économisé | H50: =IF(Calculs!B36,LOOKUP(H13,ProfilHebdo,CombEco),LOOKUP(H13,ProfilHebdo,CombEcomax)) -> 13 192 | I50: ='Tech Data'!J51 -> kWh/an
A51: =VLOOKUP("Jaarlijks brandstofverbruik voor warm water",Translations,LANG,FALSE) -> Consommation annuelle de combustible pour l'eau chaude | C51: 25,000 | D51: =IF(ISBLANK(C43),'Eco Data'!B5,LOOKUP(Calculs!B$17,SourceEnergie,UnitéConsoAn)) -> kWh/an | G51: =VLOOKUP("Primaire-energiebesparing",Translations,LANG,FALSE) -> Energie primaire économisée | H51: =IF(Calculs!B36,LOOKUP(H13,ProfilHebdo,EprimEco),LOOKUP(H13,ProfilHebdo,EprimEcomax)) -> 12,749 | I51: =VLOOKUP("kWh thermisch /jaar",Translations,LANG,FALSE) -> kWh thermiques /an
A52: =VLOOKUP("Totaal jaarlijks brandstofverbruik voor verwarming",Translations,LANG,FALSE) -> Consommation annuelle totale de combustible de chauffage | C52: 50,000 | D52: ="kWh/" & VLOOKUP("jaar",Translations,LANG,FALSE) -> kWh/an | E52: Ú
A53: =VLOOKUP("Aftapprofiel van warm water (A, B, C of D)",Translations,LANG,FALSE) -> Profil de puisage de l'eau chaude (A;B;C ou D) | B53: Ú | C53: =VLOOKUP("A-7 dagen op 7 gedurende het hele jaar",Translations,LANG,FALSE) -> A-7 jours sur 7 toute l'année | G53: =VLOOKUP("Economische balans",Translations,LANG,FALSE) -> Bilan Economique
G54: =VLOOKUP("Kost van het zonnethermisch systeem",Translations,LANG,FALSE) -> Coût du système solaire | H54: =IFERROR(IF(Calculs!B36,IF(H15=0,LOOKUP(H13,ProfilHebdo,InvBrutHTVA),LOOKUP(H13,ProfilHebdo,InvBrutTVAc)),IF(H15=0,LOOKUP(H13,ProfilHebdo,InvBrutHTVAmax),LOOKUP(H13,ProfilHebdo,InvBrutTVAcmax))),"") -> 37,220 | I54: =LOOKUP($H$15,TVA,EURTVA) -> EUR TVAc
A55: =VLOOKUP("Projectfinanciering",Translations,LANG,FALSE) -> Financement du projet | G55: =VLOOKUP("Operationele kosten per jaar",Translations,LANG,FALSE) -> Coûts opérationnels par an | H55: =IFERROR(IF(Calculs!B36,IF(H15=0,LOOKUP(H13,ProfilHebdo,CoutOp),LOOKUP(H13,ProfilHebdo,CoutOp)*1.21),IF(H15=0,LOOKUP(H13,ProfilHebdo,CoutOpmax),(LOOKUP(H13,ProfilHebdo,CoutOpmax)*1.21))),"") -> 104 | I55: EUR TVAc
A56: =VLOOKUP("Actualisatievoet",Translations,LANG,FALSE) -> Taux d'actualisation | C56: 5.5 | D56: =VLOOKUP("% per jaar (exclusief inflatie)",Translations,LANG,FALSE) -> % par an (hors inflation) | G56: =VLOOKUP("Subsidies",Translations,LANG,FALSE) -> Subsides | H56: =IFERROR(H18*H54,"") -> 0 | I56: EUR TVAc
A57: =VLOOKUP("BTW percentage",Translations,LANG,FALSE) -> Taux de TVA | B57: Ú | C57: 21% | G57: =VLOOKUP("Netto investering na aftrek van subsidies",Translations,LANG,FALSE) -> Investissement net après subsides | H57: =IFERROR(H54-H56,"") -> 37,220 | I57: EUR TVAc
G58: =VLOOKUP("Netto investering na subsidies en belastingsvermindering",Translations,LANG,FALSE) -> Investissement net après subsides & remise d'impôt | H58: =IFERROR(IF(H57-Calculs!B31>0,H57-Calculs!B31,0),"") -> 37,220 | I58: EUR TVAc
A59: =VLOOKUP("Energiekosten",Translations,LANG,FALSE) -> Coûts énergétiques | G59: =VLOOKUP("Besparing op de brandstoffactuur in jaar 1",Translations,LANG,FALSE) -> Economie sur la facture de combustible à l'année 1 | H59: =IF(Calculs!B36,H16*LOOKUP(H13,ProfilHebdo,CombEco),H16*LOOKUP(H13,ProfilHebdo,CombEcomax)) -> 886 | I59: EUR TVAc
A60: =VLOOKUP("Factuurbedrag voor het jaarlijks globaal brandstofverbruik",Translations,LANG,FALSE) -> Montant de la facture annuelle globale de combustible | D60: =LOOKUP($H$15,TVA,EurAnTVA) -> EUR/an TVAc | G60: =VLOOKUP("Kost per kWh voor de bespaarde brandstof zonder subsidies",Translations,LANG,FALSE) -> Coût par kWh de combustible économisé hors subsides | H60: =IFERROR(IF(Calculs!B36,IF(H15=0,LOOKUP(H13,ProfilHebdo,CoutCombEco),LOOKUP(H13,ProfilHebdo,CoutCombEcoTVAc)),IF(H15=0,LOOKUP(H13,ProfilHebdo,CoutCombEcoMax),LOOKUP(H13,ProfilHebdo,CoutCombEcoTVAcmax))),"") -> 0.088 | I60: =IF(H$15=0,'Tech Data'!O$51,'Tech Data'!P$51) -> EUR/kWh TVAc
A61: =VLOOKUP("Factuurbedrag voor het jaarlijks brandstofverbruik voor warm water",Translations,LANG,FALSE) -> Montant de la facture annuelle de combustible pour l'eau chaude | D61: =LOOKUP($H$15,TVA,EurAnTVA) -> EUR/an TVAc | G61: =VLOOKUP("Kost per kWh voor de bespaarde brandstof na subsidies",Translations,LANG,FALSE) -> Coût par kWh de combustible économisé après subsides | H61: =IFERROR(IF(Calculs!B36,IF(H15=0,LOOKUP(H13,ProfilHebdo,CoutNetCombEco),LOOKUP(H13,ProfilHebdo,CoutNetCombEcoTVAc)),IF(H15=0,LOOKUP(H13,ProfilHebdo,CoutNetCombEcomax),LOOKUP(H13,ProfilHebdo,CoutNetCombEcoTVAcmax))),"") -> 0.088 | I61: =IF(H$15=0,'Tech Data'!O$51,'Tech Data'!P$51) -> EUR/kWh TVAc
A62: =VLOOKUP("Eenheidsprijs van de brandstof voor warmwaterproductie",Translations,LANG,FALSE) -> Prix unitaire du combustible utilisé pour produire l'eau chaude | D62: =IF(ISBLANK(C43),'Eco Data'!S5,IF(H15=0,LOOKUP(Calculs!B$17,SourceEnergie,UnitéPrixDéfaut),LOOKUP(Calculs!B$17,SourceEnergie,UnitéPrixDéfautTVAc))) -> EUR/kWh TVAc | G62: =VLOOKUP("Eenvoudige terugverdientijd (na subsidies)",Translations,LANG,FALSE) -> Temps de retour simple (après subsides) | H62: =IFERROR(ROUNDDOWN(H$58/H$59,1),"") -> 42.0 | I62: =VLOOKUP("Jaar",Translations,LANG, FALSE) -> an
G63: =VLOOKUP("Netto Actuele Waarde (NAW)",Translations,LANG,FALSE) -> Valeur Actualisée Nette | H63: ='Financiële balans'!C15 -> -15,430 | I63: EUR
A64: =VLOOKUP("Prijsstijging van de betreffende energiedrager",Translations,LANG,FALSE) -> Augmentation du prix du vecteur énergétique considéré | C64: 5.87 | D64: =VLOOKUP("% per jaar (exclusief inflatie)",Translations,LANG,FALSE) -> % par an (hors inflation) | G64: =VLOOKUP("Interne Rentevoet (IRV)",Translations,LANG,FALSE) -> Taux de rentabilité Interne (TRI) | H64: =IFERROR('Financiële balans'!C16*100,"") -> 1.6 | I64: %
A66: =VLOOKUP("Subsidies",Translations,LANG,FALSE) -> Subsides | G66: =VLOOKUP("Ecologische balans",Translations,LANG,FALSE) -> Bilan Environnemental
A67: =VLOOKUP("Totaal percentage aan subsidies voor de zonthermische investering",Translations,LANG,FALSE) -> Pourcentage d'aide global à l'investissement solaire | D67: % | G67: =VLOOKUP("Jaarlijkse CO2-emissiebesparing",Translations,LANG,FALSE) -> Émissions de CO2 évitées annuellement | H67: =IF(Calculs!B36,LOOKUP(H13,ProfilHebdo,CO2Eco),LOOKUP(H13,ProfilHebdo,CO2Ecomax)) -> 3 | I67: =VLOOKUP("ton/jaar",Translations,LANG, FALSE) -> tonnes/an
A68: =VLOOKUP("IPP vermindering voor energiebesparende investerigen",Translations,LANG,FALSE) -> Réduction d'IPP pour investissement économiseur d'énergie | D68: % | G68: =VLOOKUP("CO2-emissiebesparing op 25 jaar",Translations,LANG,FALSE) -> Émissions de CO2 évitées sur 25 ans | H68: =IF(Calculs!B36,LOOKUP(H13,ProfilHebdo,CO2EcoLT),LOOKUP(H13,ProfilHebdo,CO2EcoLTmax)) -> 69 | I68: =VLOOKUP("ton",Translations,LANG, FALSE) -> tonne
G69: =VLOOKUP("Kostprijs van een ton vermeden CO2-emissie (zonder subsidies)",Translations,LANG,FALSE) -> Coût d'une tonne de CO2 évité (hors subsides) | H69: =IFERROR(IF(Calculs!B36,LOOKUP(H13,ProfilHebdo,CoutCO2),LOOKUP(H13,ProfilHebdo,CoutCO2max)),"") -> 347 | I69: ="EUR/" & VLOOKUP("ton",Translations,LANG, FALSE) -> EUR/tonne

Sheet Translations (hidden)
A1: Paste this entry "as value" and recplace # with = | B1: Key | C1: NL | D1: FR | E1: EN | F1: DE
A2: ="#VLOOKUP(" & """" & B2 & """" & ";Translations;LANG;FALSE)" -> #VLOOKUP("version";Translations;LANG;FALSE) | B2: version | C2: Versie | D2: Version
A3: ="#VLOOKUP(" & """" & B3 & """" & ";Translations;LANG;FALSE)" -> #VLOOKUP("title_tool";Translations;LANG;FALSE) | B3: title_tool | C3: Quickscan voor de predimensionering van een groot zonthermisch systeem voor de productie van warm water | D3: Outil de pré-dimensionnement d'un grand système solaire thermique de production d'eau chaude
A4: ="#VLOOKUP(" & """" & B4 & """" & ";Translations;LANG;FALSE)" -> #VLOOKUP("ALGEMENE INFORMATIE";Translations;LANG;FALSE) | B4: =C4 -> ALGEMENE INFORMATIE | C4: ALGEMENE INFORMATIE | D4: INFORMATION GENERALES
A5: ="#VLOOKUP(" & """" & B5 & """" & ";Translations;LANG;FALSE)" -> #VLOOKUP("[Vestigingsnaam] :";Translations;LANG;FALSE) | B5: =C5 -> [Vestigingsnaam] : | C5: [Vestigingsnaam] : | D5: [Nom Etablissement] :
A6: #VLOOKUP("[Sector] :";Translations;LANG;FALSE) | B6: [Sector] : | C6: [Sector] : | D6: [Secteur] :
A7: #VLOOKUP("[Adres] : ";Translations;LANG;FALSE) | B7: [Adres] : | C7: [Adres] : | D7: [Adresse] :
A8: #VLOOKUP("[Gemeente] :";Translations;LANG;FALSE) | B8: [Gemeente] : | C8: [Gemeente] : | D8: [Localité] :
A9: #VLOOKUP("[Postcode] : ";Translations;LANG;FALSE) | B9: [Postcode] : | C9: [Postcode] : | D9: [Code Postal] :
A10: #VLOOKUP("[Contactpersoon] :";Translations;LANG;FALSE) | B10: [Contactpersoon] : | C10: [Contactpersoon] : | D10: [Personne de contact] :
A11: #VLOOKUP("[Functie] :";Translations;LANG;FALSE) | B11: [Functie] : | C11: [Functie] : | D11: [Fonction] :
A12: #VLOOKUP("[Tel.]";Translations;LANG;FALSE) | B12: [Tel.] | C12: [Tel.] | D12: [Tel.]
A13: #VLOOKUP("[E-mail] :";Translations;LANG;FALSE) | B13: [E-mail] : | C13: [E-mail] : | D13: [E-mail] :
A14: #VLOOKUP("De Quickscan Zonthermische Energie is een tool die ontwikkeld is voor het Brussels Hoofdstedelijk Gewest en het Waals Gewest";Translations;LANG;FALSE) | B14: De Quickscan Zonthermische Energie is een tool die ontwikkeld is voor het Brussels Hoofdstedelijk Gewest en het Waals Gewest | C14: De Quickscan Zonthermische Energie is een tool die ontwikkeld is voor het Brussels Hoofdstedelijk Gewest en het Waals Gewest | D14: Le Quick Scan Solaire thermique est un outil développé pour la Région wallonne et la Région de Bruxelles-Capitale
A15: #VLOOKUP("Concept en ontwikkeling : 3E nv";Translations;LANG;FALSE) | B15: Concept en ontwikkeling : 3E nv | C15: Concept en ontwikkeling : 3E nv | D15: Conception & Développement : 3E s.a.
A16: #VLOOKUP("Aanpassingen:";Translations;LANG;FALSE) | B16: Aanpassingen: | C16: Aanpassingen: | D16: Modifications:
A17: #VLOOKUP("Veld";Translations;LANG;FALSE) | B17: Veld | C17: Veld | D17: Champ
A18: #VLOOKUP("Verplicht";Translations;LANG;FALSE) | B18: Verplicht | C18: Verplicht | D18: Obligatoire
A19: #VLOOKUP("Facultatief";Translations;LANG;FALSE) | B19: Facultatief | C19: Facultatief | D19: Facultatif
A20: #VLOOKUP("Uitklaplijstje";Translations;LANG;FALSE) | B20: Uitklaplijstje | C20: Uitklaplijstje | D20: Menu Déroulant
A21: #VLOOKUP(" (indien blanco, worden standaardwaarden gebruikt)";Translations;LANG;FALSE) | B21: (indien blanco, worden standaardwaarden gebruikt) | C21: (indien blanco, worden standaardwaarden gebruikt) | D21: (si pas rempli, les valeurs par défaut sont utilisés)
A22: #VLOOKUP("BASISGEGEVENS";Translations;LANG;FALSE) | B22: BASISGEGEVENS | C22: BASISGEGEVENS | D22: DONNEES DE BASE
A23: =IF(B23 <> 0, "#VLOOKUP(" & """" & B23 & """" & ";Translations;LANG;FALSE)","") -> #VLOOKUP("Beschrijving van de vestiging";Translations;LANG;FALSE) | B23: Beschrijving van de vestiging | C23: Beschrijving van de vestiging | D23: Descriptif de l'établissement
A24: =IF(B24 <> 0, "#VLOOKUP(" & """" & B24 & """" & ";Translations;LANG;FALSE)","") -> #VLOOKUP("Vestigingstype";Translations;LANG;FALSE) | B24: Vestigingstype | C24: Vestigingstype | D24: Type d'établissement
A25: #VLOOKUP("Bezetting";Translations;LANG;FALSE) | B25: Bezetting | C25: Bezetting | D25: Fréquentation
A26: =IF(OR(B26<>0,LEN(B26)>0),"#VLOOKUP("&""""&B26&""""&";Translations;LANG;FALSE)","") -> #VLOOKUP("Aantal wooneenheden";Translations;LANG;FALSE) | B26: Aantal wooneenheden | C26: Aantal wooneenheden | D26: Nombre de logements
A27: #VLOOKUP("Jaarlijkse gemiddelde bezettingsgraad";Translations;LANG;FALSE) | B27: Jaarlijkse gemiddelde bezettingsgraad | C27: Jaarlijkse gemiddelde bezettingsgraad | D27: Taux d'occupation annuel moyen
A28: #VLOOKUP("Gebouwoppervlakte";Translations;LANG;FALSE) | B28: Gebouwoppervlakte | C28: Gebouwoppervlakte | D28: Surface du bâtiment
A29: #VLOOKUP("Daktype";Translations;LANG;FALSE) | B29: Daktype | C29: Daktype | D29: Toiture
A30: #VLOOKUP("Maximale nuttige dakoppervlakte";Translations;LANG;FALSE) | B30: Maximale nuttige dakoppervlakte | C30: Maximale nuttige dakoppervlakte | D30: Surface maximale utile de toiture
A31: #VLOOKUP("Dakoriëntatie";Translations;LANG;FALSE) | B31: Dakoriëntatie | C31: Dakoriëntatie | D31: Orientation de la toiture
A32: #VLOOKUP("Hellingsgraad van het dak";Translations;LANG;FALSE) | B32: Hellingsgraad van het dak | C32: Hellingsgraad van het dak | D32: Inclinaison de la toiture
B33: 0
A34: #VLOOKUP("Warmwaterproductie";Translations;LANG;FALSE) | B34: Warmwaterproductie | C34: Warmwaterproductie | D34: Production d'eau chaude
A35: #VLOOKUP("Gebruikte energiedrager voor de warmwaterproductie";Translations;LANG;FALSE) | B35: Gebruikte energiedrager voor de warmwaterproductie | C35: Gebruikte energiedrager voor de warmwaterproductie | D35: Vecteur énergétique utilisé pour la production d'eau chaude
A36: #VLOOKUP("Warmwaterproductie onafhankelijk van de ruimteverwarming";Translations;LANG;FALSE) | B36: Warmwaterproductie onafhankelijk van de ruimteverwarming | C36: Warmwaterproductie onafhankelijk van de ruimteverwarming | D36: Production d'eau chaude indépendante du chauffage des locaux
A37: #VLOOKUP("Type warmwaterketel";Translations;LANG;FALSE) | B37: Type warmwaterketel | C37: Type warmwaterketel | D37: Type d'appoint pour l'eau chaude
A38: #VLOOKUP("Ogenblikkelijk warmwaterketelrendement volgens onderhoudsfiche";Translations;LANG;FALSE) | B38: Ogenblikkelijk warmwaterketelrendement volgens onderhoudsfiche | C38: Ogenblikkelijk warmwaterketelrendement volgens onderhoudsfiche | D38: Rendement instantané de l'appoint selon fiche d'entretien
B39: 0
A40: #VLOOKUP("Warmwaterverbruik";Translations;LANG;FALSE) | B40: Warmwaterverbruik | C40: Warmwaterverbruik | D40: Consommation d'eau chaude
A41: #VLOOKUP("Gemiddeld verbruik van warm water";Translations;LANG;FALSE) | B41: Gemiddeld verbruik van warm water | C41: Gemiddeld verbruik van warm water | D41: Consommation moyenne d'eau chaude
A42: #VLOOKUP("Warmwateropslag- of warmwaterproductietemperatuur";Translations;LANG;FALSE) | B42: Warmwateropslag- of warmwaterproductietemperatuur | C42: Warmwateropslag- of warmwaterproductietemperatuur | D42: Température de stockage ou de production de l'eau chaude
A43: #VLOOKUP("Jaarlijks brandstofverbruik voor warm water";Translations;LANG;FALSE) | B43: Jaarlijks brandstofverbruik voor warm water | C43: Jaarlijks brandstofverbruik voor warm water | D43: Consommation annuelle de combustible pour l'eau chaude
A44: #VLOOKUP("Totaal jaarlijks brandstofverbruik voor verwarming";Translations;LANG;FALSE) | B44: Totaal jaarlijks brandstofverbruik voor verwarming | C44: Totaal jaarlijks brandstofverbruik voor verwarming | D44: Consommation annuelle totale de combustible de chauffage
A45: #VLOOKUP("Aftapprofiel van warm water (A, B, C of D)";Translations;LANG;FALSE) | B45: Aftapprofiel van warm water (A, B, C of D) | C45: Aftapprofiel van warm water (A, B, C of D) | D45: Profil de puisage de l'eau chaude (A;B;C ou D)
B46: 0
A47: #VLOOKUP("Projectfinanciering";Translations;LANG;FALSE) | B47: Projectfinanciering | C47: Projectfinanciering | D47: Financement du projet
A48: #VLOOKUP("Actualisatievoet";Translations;LANG;FALSE) | B48: Actualisatievoet | C48: Actualisatievoet | D48: Taux d'actualisation
A49: #VLOOKUP("BTW percentage";Translations;LANG;FALSE) | B49: BTW percentage | C49: BTW percentage | D49: Taux de TVA
B50: 0
A51: #VLOOKUP("Energiekosten";Translations;LANG;FALSE) | B51: Energiekosten | C51: Energiekosten | D51: Coûts énergétiques
A52: #VLOOKUP("Factuurbedrag voor het jaarlijks globaal brandstofverbruik";Translations;LANG;FALSE) | B52: Factuurbedrag voor het jaarlijks globaal brandstofverbruik | C52: Factuurbedrag voor het jaarlijks globaal brandstofverbruik | D52: Montant de la facture annuelle globale de combustible
A53: #VLOOKUP("Factuurbedrag voor het jaarlijks brandstofverbruik voor warm water";Translations;LANG;FALSE) | B53: Factuurbedrag voor het jaarlijks brandstofverbruik voor warm water | C53: Factuurbedrag voor het jaarlijks brandstofverbruik voor warm water | D53: Montant de la facture annuelle de combustible pour l'eau chaude
A54: #VLOOKUP("Eenheidsprijs van de brandstof voor warmwaterproductie";Translations;LANG;FALSE) | B54: Eenheidsprijs van de brandstof voor warmwaterproductie | C54: Eenheidsprijs van de brandstof voor warmwaterproductie | D54: Prix unitaire du combustible utilisé pour produire l'eau chaude
B55: 0
A56: #VLOOKUP("Prijsstijging van de betreffende energiedrager";Translations;LANG;FALSE) | B56: Prijsstijging van de betreffende energiedrager | C56: Prijsstijging van de betreffende energiedrager | D56: Augmentation du prix du vecteur énergétique considéré
B57: 0
A58: #VLOOKUP("Subsidies";Translations;LANG;FALSE) | B58: Subsidies | C58: Subsidies | D58: Subsides
A59: #VLOOKUP("Totaal percentage aan subsidies voor de zonthermische investering";Translations;LANG;FALSE) | B59: Totaal percentage aan subsidies voor de zonthermische investering | C59: Totaal percentage aan subsidies voor de zonthermische investering | D59: Pourcentage d'aide global à l'investissement solaire
A60: #VLOOKUP("IPP vermindering voor energiebesparende investerigen";Translations;LANG;FALSE) | B60: IPP vermindering voor energiebesparende investerigen | C60: IPP vermindering voor energiebesparende investerigen | D60: Réduction d'IPP pour investissement économiseur d'énergie
A61: #VLOOKUP("jaar";Translations;LANG;FALSE) | B61: jaar | C61: jaar | D61: an
A62: #VLOOKUP("jaren";Translations;LANG;FALSE) | B62: jaren | C62: jaren | D62: ans
A63: #VLOOKUP("EUR BTW excl";Translations;LANG;FALSE) | B63: EUR BTW excl | C63: EUR BTW excl | D63: EUR HTVA
A64: #VLOOKUP("EUR BTW incl";Translations;LANG;FALSE) | B64: EUR BTW incl | C64: EUR BTW incl | D64: EUR TVAc
A65: #VLOOKUP("EUR/jaar BTW excl";Translations;LANG;FALSE) | B65: EUR/jaar BTW excl | C65: EUR/jaar BTW excl | D65: EUR/an HTVA
A66: #VLOOKUP("EUR/jaar BTW incl";Translations;LANG;FALSE) | B66: EUR/jaar BTW incl | C66: EUR/jaar BTW incl | D66: EUR/an TVAc
A67: #VLOOKUP("litre";Translations;LANG;FALSE) | B67: =C67 -> litre | C67: litre | D67: litre
A68: #VLOOKUP("EUR/liter";Translations;LANG;FALSE) | B68: EUR/liter | C68: EUR/liter | D68: EUR/litre
A69: #VLOOKUP("EUR/kWh BTW excl";Translations;LANG;FALSE) | B69: EUR/kWh BTW excl | C69: EUR/kWh BTW excl | D69: EUR/kWh HTVA
A70: #VLOOKUP("EUR/ton BTW excl";Translations;LANG;FALSE) | B70: EUR/ton BTW excl | C70: EUR/ton BTW excl | D70: EUR/tonne HTVA
A71: #VLOOKUP("EUR/liter BTW excl";Translations;LANG;FALSE) | B71: EUR/liter BTW excl | C71: EUR/liter BTW excl | D71: EUR/litre HTVA
A72: #VLOOKUP("EUR/kWh BTW incl";Translations;LANG;FALSE) | B72: EUR/kWh BTW incl | C72: EUR/kWh BTW incl | D72: EUR/kWh TVAc
A73: #VLOOKUP("EUR/ton BTW incl";Translations;LANG;FALSE) | B73: EUR/ton BTW incl | C73: EUR/ton BTW incl | D73: EUR/tonne TVAc
A74: #VLOOKUP("EUR/liter BTW incl";Translations;LANG;FALSE) | B74: EUR/liter BTW incl | C74: EUR/liter BTW incl | D74: EUR/litre TVAc
A75: #VLOOKUP("kWh/jaar";Translations;LANG;FALSE) | B75: kWh/jaar | C75: kWh/jaar | D75: kWh/an
A76: #VLOOKUP("ton/jaar";Translations;LANG;FALSE) | B76: ton/jaar | C76: ton/jaar | D76: tonnes/an
A77: =IF(B77 <> 0, "#VLOOKUP(" & """" & B77 & """" & ";Translations;LANG;FALSE)","") -> #VLOOKUP("l stookolie/jaar";Translations;LANG;FALSE) | B77: l stookolie/jaar | C77: l stookolie/jaar | D77: l mazout/an
A78: #VLOOKUP("1-Elektriciteit (BHG)";Translations;LANG;FALSE) | B78: 1-Elektriciteit (BHG) | C78: 1-Elektriciteit (BHG) | D78: 1-Electricité (RBC)
A79: #VLOOKUP("2-Electriciteit (WG)";Translations;LANG;FALSE) | B79: 2-Electriciteit (WG) | C79: 2-Electriciteit (WG) | D79: 2-Electricité (RW)
A80: #VLOOKUP("3-Aardgas (BHG)";Translations;LANG;FALSE) | B80: 3-Aardgas (BHG) | C80: 3-Aardgas (BHG) | D80: 3-Gaz naturel (RBC)
A81: #VLOOKUP("4-Aardgas (WG)";Translations;LANG;FALSE) | B81: 4-Aardgas (WG) | C81: 4-Aardgas (WG) | D81: 4-Gaz naturel (RW)
A82: #VLOOKUP("5-Houtpellets";Translations;LANG;FALSE) | B82: 5-Houtpellets | C82: 5-Houtpellets | D82: 5-Granulés de bois
A83: #VLOOKUP("6-Stookolie";Translations;LANG;FALSE) | B83: 6-Stookolie | C83: 6-Stookolie | D83: 6-Mazout
A84: #VLOOKUP("A-Centra voor gehandicapten, IMS, IMP";Translations;LANG;FALSE) | B84: A-Centra voor gehandicapten, IMS, IMP | C84: A-Centra voor gehandicapten, IMS, IMP | D84: A-Centre pour handicapés, IMS, IMP,
A85: #VLOOKUP("B-Hospitalen, klinieken";Translations;LANG;FALSE) | B85: B-Hospitalen, klinieken | C85: B-Hospitalen, klinieken | D85: B-Hôpital, clinique
A86: #VLOOKUP("C-Rust- en verzorgingstehuizen";Translations;LANG;FALSE) | B86: C-Rust- en verzorgingstehuizen | C86: C-Rust- en verzorgingstehuizen | D86: C-Maison de repos et de soins
A87: #VLOOKUP("D-Strafinrichtingen";Translations;LANG;FALSE) | B87: D-Strafinrichtingen | C87: D-Strafinrichtingen | D87: D-Etablissement pénitentiaire
A88: #VLOOKUP("E-Serviceflats";Translations;LANG;FALSE) | B88: E-Serviceflats | C88: E-Serviceflats | D88: E-Appart hotel, Flat hotel
A89: #VLOOKUP("F-Hotels, motels, jeugdherbergen, pensions";Translations;LANG;FALSE) | B89: F-Hotels, motels, jeugdherbergen, pensions | C89: F-Hotels, motels, jeugdherbergen, pensions | D89: F-Hôtel, motel, auberge, pension
A90: #VLOOKUP("G-Gebouw van 4 tot 15 appartementen";Translations;LANG;FALSE) | B90: G-Gebouw van 4 tot 15 appartementen | C90: G-Gebouw van 4 tot 15 appartementen | D90: G-Logement de 4 à 15 appartements
A91: #VLOOKUP("H-Rusthuizen";Translations;LANG;FALSE) | B91: H-Rusthuizen | C91: H-Rusthuizen | D91: H-Maison de repos
A92: #VLOOKUP("I-Gebouw van meer dan 15 appartementen";Translations;LANG;FALSE) | B92: I-Gebouw van meer dan 15 appartementen | C92: I-Gebouw van meer dan 15 appartementen | D92: I-Logement de plus de 15 appartements
A93: #VLOOKUP("J-Internaten";Translations;LANG;FALSE) | B93: J-Internaten | C93: J-Internaten | D93: J-Internat
A94: #VLOOKUP("K-Sociale huisvesting";Translations;LANG;FALSE) | B94: K-Sociale huisvesting | C94: K-Sociale huisvesting | D94: K-Logement social
A95: #VLOOKUP("L-Onthaalcentra";Translations;LANG;FALSE) | B95: L-Onthaalcentra | C95: L-Onthaalcentra | D95: L-Centres d'accueil
A96: #VLOOKUP("M-Kapsalons";Translations;LANG;FALSE) | B96: M-Kapsalons | C96: M-Kapsalons | D96: M-Salons de coiffure
A97: #VLOOKUP("N-Poliklinieken en daghospitalen";Translations;LANG;FALSE) | B97: N-Poliklinieken en daghospitalen | C97: N-Poliklinieken en daghospitalen | D97: N-Polyclinique, hôpital de jour
A98: #VLOOKUP("O-Sportcentra, sporthallen, fitness";Translations;LANG;FALSE) | B98: O-Sportcentra, sporthallen, fitness | C98: O-Sportcentra, sporthallen, fitness | D98: O-Centre sportif, hall des sports, fitness
A99: #VLOOKUP("P-Restaurants";Translations;LANG;FALSE) | B99: P-Restaurants | C99: P-Restaurants | D99: P-Restaurants
A100: #VLOOKUP("Q-Crêches";Translations;LANG;FALSE) | B100: Q-Crêches | C100: Q-Crêches | D100: Q-Crêche
A101: #VLOOKUP("R-Zorgcentra, medisch-sociale hulpcentra of mentale zorgcentra";Translations;LANG;FALSE) | B101: R-Zorgcentra, medisch-sociale hulpcentra of mentale zorgcentra | C101: R-Zorgcentra, medisch-sociale hulpcentra of mentale zorgcentra | D101: R-Centre de soins, aide médico-sociale, santé mentale
A102: #VLOOKUP("S-Administraties";Translations;LANG;FALSE) | B102: S-Administraties | C102: S-Administraties | D102: S-Administration
A103: #VLOOKUP("T-Kantoren";Translations;LANG;FALSE) | B103: T-Kantoren | C103: T-Kantoren | D103: T-Bureau d'entreprise
A104: #VLOOKUP("U-CLB-centra";Translations;LANG;FALSE) | B104: U-CLB-centra | C104: U-CLB-centra | D104: U-Centre PMS
A105: #VLOOKUP("V-Scholen en universiteiten";Translations;LANG;FALSE) | B105: V-Scholen en universiteiten | C105: V-Scholen en universiteiten | D105: V-Ecole, Université
A106: #VLOOKUP("X-Andere soorten vestigingen";Translations;LANG;FALSE) | B106: X-Andere soorten vestigingen | C106: X-Andere soorten vestigingen | D106: X-Autre type d'établissement
A107: #VLOOKUP("Bedden";Translations;LANG;FALSE) | B107: Bedden | C107: Bedden | D107: Lits
A108: #VLOOKUP("Bedden";Translations;LANG;FALSE) | B108: Bedden | C108: Bedden | D108: Lits
A109: #VLOOKUP("Bedden";Translations;LANG;FALSE) | B109: Bedden | C109: Bedden | D109: Lits
A110: #VLOOKUP("Gedetineerden";Translations;LANG;FALSE) | B110: Gedetineerden | C110: Gedetineerden | D110: Pensionnaires
A111: #VLOOKUP("Bewoners";Translations;LANG;FALSE) | B111: Bewoners | C111: Bewoners | D111: Occupants
A112: #VLOOKUP("Bewoners";Translations;LANG;FALSE) | B112: Bewoners | C112: Bewoners | D112: Occupants
A113: #VLOOKUP("Bewoners";Translations;LANG;FALSE) | B113: Bewoners | C113: Bewoners | D113: Occupants
A114: #VLOOKUP("Bedden";Translations;LANG;FALSE) | B114: Bedden | C114: Bedden | D114: Lits
A115: #VLOOKUP("Bewoners";Translations;LANG;FALSE) | B115: Bewoners | C115: Bewoners | D115: Occupants
A116: #VLOOKUP("Bedden";Translations;LANG;FALSE) | B116: Bedden | C116: Bedden | D116: Lits
A117: #VLOOKUP("Bewoners";Translations;LANG;FALSE) | B117: Bewoners | C117: Bewoners | D117: Occupants
A118: #VLOOKUP("Bewoners + personeelsleden";Translations;LANG;FALSE) | B118: Bewoners + personeelsleden | C118: Bewoners + personeelsleden | D118: Occupants + membres du personnel
A119: #VLOOKUP("Klanten per dag";Translations;LANG;FALSE) | B119: Klanten per dag | C119: Klanten per dag | D119: Clients par jour
A120: #VLOOKUP("Bewoners + personeelsleden";Translations;LANG;FALSE) | B120: Bewoners + personeelsleden | C120: Bewoners + personeelsleden | D120: Occupants + membres du personnel
A121: #VLOOKUP("Sporters per dag";Translations;LANG;FALSE) | B121: Sporters per dag | C121: Sporters per dag | D121: Sportifs par jour
A122: #VLOOKUP("Klanten per dag";Translations;LANG;FALSE) | B122: =C122 -> Klanten per dag | C122: Klanten per dag | D122: Clients par jour
A123: #VLOOKUP("Kinderen";Translations;LANG;FALSE) | B123: Kinderen | C123: Kinderen | D123: Enfants
A124: #VLOOKUP("Bewoners + personeelsleden";Translations;LANG;FALSE) | B124: Bewoners + personeelsleden | C124: Bewoners + personeelsleden | D124: Occupants + membres du personnel
A125: #VLOOKUP("Bedienden";Translations;LANG;FALSE) | B125: Bedienden | C125: Bedienden | D125: Employés
A126: #VLOOKUP("Bedienden";Translations;LANG;FALSE) | B126: Bedienden | C126: Bedienden | D126: Employés
A127: #VLOOKUP("Bewoners + personeelsleden";Translations;LANG;FALSE) | B127: Bewoners + personeelsleden | C127: Bewoners + personeelsleden | D127: Occupants + membres du personnel
A128: #VLOOKUP("Studenten";Translations;LANG;FALSE) | B128: Studenten | C128: Studenten | D128: Etudiants
A129: #VLOOKUP("Bewoners";Translations;LANG;FALSE) | B129: Bewoners | C129: Bewoners | D129: Occupants
A130: #VLOOKUP("Wooneenheden";Translations;LANG;FALSE) | B130: Wooneenheden | C130: Wooneenheden | D130: Logements
A131: #VLOOKUP("woontypes_verplicht";Translations;LANG;FALSE) | B131: woontypes_verplicht | C131: Verplicht veld. Als de vestiging niet overeenkomt met één van de voorgestelde types, gebruik 'ander vestigingstype'. | D131: Champ obligatoire. Si l'établissement ne correspond à aucun des types proposés, utiliser 'autre établissement'
A132: #VLOOKUP("Enkel voor appartementsgebouwen";Translations;LANG;FALSE) | B132: Enkel voor appartementsgebouwen | C132: Enkel voor appartementsgebouwen | D132: Uniquement pour les immeubles à appartements
A133: #VLOOKUP("De standaard gebruikte bezettingsgraad is 100%";Translations;LANG;FALSE) | B133: De standaard gebruikte bezettingsgraad is 100% | C133: De standaard gebruikte bezettingsgraad is 100% | D133: Le taux d'occupation utilisé par défaut est de 100%
A134: #VLOOKUP("Vloeroppervlakte inclusief buitenmuren";Translations;LANG;FALSE) | B134: Vloeroppervlakte inclusief buitenmuren | C134: Vloeroppervlakte inclusief buitenmuren | D134: Surface de plancher, murs extérieurs inclus
A135: #VLOOKUP("De daken met een helling tussen 0 en 10° dienen als platte daken beschouwd te worden";Translations;LANG;FALSE) | B135: De daken met een helling tussen 0 en 10° dienen als platte daken beschouwd te worden | C135: De daken met een helling tussen 0 en 10° dienen als platte daken beschouwd te worden | D135: Les toitures présentant une inclinaison comprise entre 0 et 10° sont assimilées à des toitures plates.
A136: #VLOOKUP("Vul dit veld in als de nuttige dakoppervlakte (zonder schaduw of obstakels) kleiner is dan 90% van de nodige optimale dakoppervlakte.";Translations;LANG;FALSE) | B136: Vul dit veld in als de nuttige dakoppervlakte (zonder schaduw of obstakels) kleiner is dan 90% van de nodige optimale dakoppervlakte. | C136: Vul dit veld in als de nuttige dakoppervlakte (zonder schaduw of obstakels) kleiner is dan 90% van de nodige optimale dakoppervlakte. | D136: A remplir si la surface de toiture utile (sans obstacles ni ombrage) est inférieure à 90% de la surface de toiture nécessaire à l'optimum
A137: #VLOOKUP("Indien hellend dak : oriëntatie van de helling die het best is blootgesteld aan het zuiden. Indien plat dak : oriëntatie van de gevel die het best naar het zuiden gericht is. De standaard oriëntatie is pal in het zuiden.";Translations;LANG;FALSE) | B137: Indien hellend dak : oriëntatie van de helling die het best is blootgesteld aan het zuiden. Indien plat dak : oriëntatie van de gevel die het best naar het zuiden gericht is. De standaard oriëntatie is pal in het zuiden. | C137: Indien hellend dak : oriëntatie van de helling die het best is blootgesteld aan het zuiden. Indien plat dak : oriëntatie van de gevel die het best naar het zuiden gericht is. De standaard oriëntatie is pal in het zuiden. | D137: Si "Toiture inclinée" : orientation du pan le mieux exposé. Si "Toiture plate" : orientation de la façade la plus proche du Sud. L'orientation utilisée par défaut est plein Sud.
A138: #VLOOKUP("hell_plat";Translations;LANG;FALSE) | B138: hell_plat | C138: Hellende daken met een helling van 0 tot 10° worden als platte daken beschouwd. Indien "Plat dak" wordt dit gegeven niet verder gebruikt. | D138: Les toitures présentant une inclinaison comprise entre 0 et 10° sont assimilées à des toitures plates. Si "Toiture plate" cette donnée n'est pas prise en considération.
A139: #VLOOKUP("Kies de energiedrager in de correcte regio: BHG: Brussels Hoofdstedelijk Gewest WG: Waals Gewest";Translations;LANG;FALSE) | B139: Kies de energiedrager in de correcte regio: BHG: Brussels Hoofdstedelijk Gewest WG: Waals Gewest | C139: Kies de energiedrager in de correcte regio: BHG: Brussels Hoofdstedelijk Gewest WG: Waals Gewest | D139: Sélectionner le vecteur énergétique et la Région. RBC : Région de Bruxelles-Capitale RW : Région wallonne
A140: #VLOOKUP("Het warmwaterverbruik moet begrepen zijn tussen 300 en 20.000 m³/jaar (equivalent aan 1 à 50 m³/dag) ";Translations;LANG;FALSE) | B140: Het warmwaterverbruik moet begrepen zijn tussen 300 en 20.000 m³/jaar (equivalent aan 1 à 50 m³/dag) | C140: Het warmwaterverbruik moet begrepen zijn tussen 300 en 20.000 m³/jaar (equivalent aan 1 à 50 m³/dag) | D140: La consommation d'eau chaude doit être comprise entre 300 et 20.000 m³/an (l'équivalent de 1 à 50 m³/j)
A141: =IF(B141 <> 0, "#VLOOKUP(" & """" & B141 & """" & ";Translations;LANG;FALSE)","") -> #VLOOKUP("Duid de temperatuur van warmwateropslag of -productie aan. De standaard beschouwde waarde is 60°C.";Translations;LANG;FALSE) | B141: Duid de temperatuur van warmwateropslag of -productie aan. De standaard beschouwde waarde is 60°C. | C141: Duid de temperatuur van warmwateropslag of -productie aan. De standaard beschouwde waarde is 60°C. | D141: Indiquez la température de stockage ou de production de l'eau chaude. température considérée par défaut : 60°C
A142: #VLOOKUP("Scenario voor BHG volgens EPB";Translations;LANG;FALSE) | B142: Scenario voor BHG volgens EPB | C142: Scenario voor BHG volgens EPB | D142: Scénario pour PEB RBC
A143: #VLOOKUP("De gekozen actualisatievoet reflecteert de interestvoet op kapitaal in de huidige markt. De standaard gekozen actualisatievoet bedraagt 5,5%.";Translations;LANG;FALSE) | B143: De gekozen actualisatievoet reflecteert de interestvoet op kapitaal in de huidige markt. De standaard gekozen actualisatievoet bedraagt 5,5%. | C143: De gekozen actualisatievoet reflecteert de interestvoet op kapitaal in de huidige markt. De standaard gekozen actualisatievoet bedraagt 5,5%. | D143: Le taux généralement choisi reflète le coût du capital et prend en compte le taux d'intérêt du marché pour une durée comparable. Taux d'actualisation par défaut : 5,5%
A144: #VLOOKUP("Hellend dak";Translations;LANG;FALSE) | B144: Hellend dak | C144: Hellend dak | D144: Toiture inclinée
A145: #VLOOKUP("Plat dak";Translations;LANG;FALSE) | B145: Plat dak | C145: Plat dak | D145: Toiture plate
A146: #VLOOKUP("1-Oost";Translations;LANG;FALSE) | B146: 1-Oost | C146: 1-Oost | D146: 1-Est
A147: #VLOOKUP("3-Oost zuidoost";Translations;LANG;FALSE) | B147: 3-Oost zuidoost | C147: 3-Oost zuidoost | D147: 2-Est Sud Est
A148: #VLOOKUP("4-West";Translations;LANG;FALSE) | B148: 4-West | C148: 4-West | D148: 3-Ouest
A149: #VLOOKUP("5-West zuidwest";Translations;LANG;FALSE) | B149: 5-West zuidwest | C149: 5-West zuidwest | D149: 4-Ouest Sud Ouest
A150: #VLOOKUP("6-Zuid";Translations;LANG;FALSE) | B150: 6-Zuid | C150: 6-Zuid | D150: 5-Sud
A151: #VLOOKUP("7-Zuidoost";Translations;LANG;FALSE) | B151: 7-Zuidoost | C151: 7-Zuidoost | D151: 6-Sud Est
A152: #VLOOKUP("8-Zuidwest";Translations;LANG;FALSE) | B152: 8-Zuidwest | C152: 8-Zuidwest | D152: 7-Sud Ouest
A153: #VLOOKUP("9-Zuid zuidoost";Translations;LANG;FALSE) | B153: 9-Zuid zuidoost | C153: 9-Zuid zuidoost | D153: 8-Sud Sud Est
A154: #VLOOKUP("10-Zuid zuidwest";Translations;LANG;FALSE) | B154: 10-Zuid zuidwest | C154: 10-Zuid zuidwest | D154: 9-Sud Sud Ouest
A155: #VLOOKUP("A-Atmosferische ketel op aardgas";Translations;LANG;FALSE) | B155: A-Atmosferische ketel op aardgas | C155: A-Atmosferische ketel op aardgas | D155: A-Chaudière atmosphérique au gaz
A156: #VLOOKUP("B-Atmosferische ketel op stookolie";Translations;LANG;FALSE) | B156: B-Atmosferische ketel op stookolie | C156: B-Atmosferische ketel op stookolie | D156: B-Chaudière atmosphérique au mazout
A157: #VLOOKUP("C-Ketel HR PLUS";Translations;LANG;FALSE) | B157: C-Ketel HR PLUS | C157: C-Ketel HR PLUS | D157: C-Chaudière HR PLUS
A158: #VLOOKUP("D-Ketel HR TOP (condensatie)";Translations;LANG;FALSE) | B158: D-Ketel HR TOP (condensatie) | C158: D-Ketel HR TOP (condensatie) | D158: D-Chaudière HR TOP (condensation)
A159: #VLOOKUP("E-OPTIMAZ-ketel van na 1999";Translations;LANG;FALSE) | B159: E-OPTIMAZ-ketel van na 1999 | C159: E-OPTIMAZ-ketel van na 1999 | D159: E-Chaudière OPTIMAZ d'après 1999
A160: #VLOOKUP("F-OPTIMAZ-ketel van vóór 1999";Translations;LANG;FALSE) | B160: F-OPTIMAZ-ketel van vóór 1999 | C160: F-OPTIMAZ-ketel van vóór 1999 | D160: F-Chaudière OPTIMAZ d'avant 1999
A161: #VLOOKUP("G-OPTIMAZ-ketel elite (condensatie)";Translations;LANG;FALSE) | B161: G-OPTIMAZ-ketel elite (condensatie) | C161: G-OPTIMAZ-ketel elite (condensatie) | D161: G-Chaudière OPTIMAZ élite (condensation)
A162: #VLOOKUP("H-Pelletketel van minder dan 10 jaar oud";Translations;LANG;FALSE) | B162: H-Pelletketel van minder dan 10 jaar oud | C162: H-Pelletketel van minder dan 10 jaar oud | D162: H-Chaudière pellets de moins de 10 ans
A163: #VLOOKUP("I-Pelletketel van meer dan 10 jaar oud";Translations;LANG;FALSE) | B163: I-Pelletketel van meer dan 10 jaar oud | C163: I-Pelletketel van meer dan 10 jaar oud | D163: I-Chaudière pellets de plus de 10 ans
A164: #VLOOKUP("J-Elektrische weerstand";Translations;LANG;FALSE) | B164: J-Elektrische weerstand | C164: J-Elektrische weerstand | D164: J-Résistance électrique
A165: #VLOOKUP("A-7 dagen op 7 gedurende het hele jaar";Translations;LANG;FALSE) | B165: A-7 dagen op 7 gedurende het hele jaar | C165: A-7 dagen op 7 gedurende het hele jaar | D165: A-7 jours sur 7 toute l'année
A166: #VLOOKUP("B-5 dagen op 7 gedurende het hele jaar";Translations;LANG;FALSE) | B166: B-5 dagen op 7 gedurende het hele jaar | C166: B-5 dagen op 7 gedurende het hele jaar | D166: B-5 jours sur 7 toute l'année
A167: #VLOOKUP("C-5 dagen op 7 uitgezonderd schoolvakanties";Translations;LANG;FALSE) | B167: C-5 dagen op 7 uitgezonderd schoolvakanties | C167: C-5 dagen op 7 uitgezonderd schoolvakanties | D167: C-5 jours sur 7 hors vacances scolaires
A168: #VLOOKUP("D-7 dagen op 7 uitgezonderd schoolvakanties";Translations;LANG;FALSE) | B168: D-7 dagen op 7 uitgezonderd schoolvakanties | C168: D-7 dagen op 7 uitgezonderd schoolvakanties | D168: D-7 jours sur 7 hors vacances scolaires
A169: #VLOOKUP("Privaat";Translations;LANG;FALSE) | B169: Privaat | C169: Privaat | D169: Privé
A170: #VLOOKUP("Publiek";Translations;LANG;FALSE) | B170: Publiek | C170: Publiek | D170: Public
A171: #VLOOKUP("Nee";Translations;LANG;FALSE) | B171: Nee | C171: Nee | D171: Non
A172: #VLOOKUP("Ja";Translations;LANG;FALSE) | B172: Ja | C172: Ja | D172: Oui
A173: #VLOOKUP("Als u BTW recupereert, kies dan voor 0%. Alle berekeningen zullen dan uitgevoerd worden zonder BTW.";Translations;LANG;FALSE) | B173: Als u BTW recupereert, kies dan voor 0%. Alle berekeningen zullen dan uitgevoerd worden zonder BTW. | C173: Als u BTW recupereert, kies dan voor 0%. Alle berekeningen zullen dan uitgevoerd worden zonder BTW. | D173: Si vous récupérez la TVA cliquez sur 0%. Tous les calculs seront hors TVA.
A174: #VLOOKUP("% per jaar (exclusief inflatie)";Translations;LANG;FALSE) | B174: % per jaar (exclusief inflatie) | C174: % per jaar (exclusief inflatie) | D174: % par an (hors inflation)
A175: #VLOOKUP("Het standaard gebruikte subsidie-percentage is 0%. In het BHG kunnen bepaalde bedrijven naast de energiepremie ook aanspraak maken op - een fiscale korting - een subsidie van het BHG (25%, 35%, 45%) NIET CUMULEERBAAR met energiepremies";Translations;LANG;FALSE) | B175: Het standaard gebruikte subsidie-percentage is 0%. In het BHG kunnen bepaalde bedrijven naast de energiepremie ook aanspraak maken op - een fiscale korting - een subsidie van het BHG (25%, 35%, 45%) NIET CUMULEERBAAR met energiepremies | C175: Het standaard gebruikte subsidie-percentage is 0%. In het BHG kunnen bepaalde bedrijven naast de energiepremie ook aanspraak maken op - een fiscale korting - een subsidie van het BHG (25%, 35%, 45%) NIET CUMULEERBAAR met energiepremies | D175: Le niveau d'aide par défaut est de 0%. Outre les primes Energie, en RBC certaines catégories d'entreprises ont droit: - aux aides régionales (T)PE - 45% ; ME -35% ; GE -25% ) NON CUMULABLES avec la prime Energie - à une déduction fiscale pour inv. EE
A176: #VLOOKUP("De belastingvermindering (voor appartementsgebouwen) werd afgeschaft op 31/12/2011 De standaardwaarde die gehanteerd wordt, is 0%.";Translations;LANG;FALSE) | B176: De belastingvermindering (voor appartementsgebouwen) werd afgeschaft op 31/12/2011 De standaardwaarde die gehanteerd wordt, is 0%. | C176: De belastingvermindering (voor appartementsgebouwen) werd afgeschaft op 31/12/2011 De standaardwaarde die gehanteerd wordt, is 0%. | D176: la Réduction d'Impôts Pour Personne physique (limitée aux immeubles à appartements) est supprimée depuis le 31/12/2011. La valeur utilisée par défaut est de 0%
A177: #VLOOKUP("BEREKENINGSHYPOTHESEN";Translations;LANG;FALSE) | B177: BEREKENINGSHYPOTHESEN | C177: BEREKENINGSHYPOTHESEN | D177: HYPOTHESES DE CALCUL
A178: #VLOOKUP("Gebruikte energiedrager voor de warmwaterproductie";Translations;LANG;FALSE) | B178: Gebruikte energiedrager voor de warmwaterproductie | C178: Gebruikte energiedrager voor de warmwaterproductie | D178: Vecteur énergétique utilisé pour la production d'eau chaude
A179: #VLOOKUP("Warmwaterketelrendement";Translations;LANG;FALSE) | B179: Warmwaterketelrendement | C179: Warmwaterketelrendement | D179: Rendement utile de production d'eau chaude par l'appoint
B180: 0
A181: #VLOOKUP("Referentiewarmwaterverbruik";Translations;LANG;FALSE) | B181: Referentiewarmwaterverbruik | C181: Referentiewarmwaterverbruik | D181: Consommation d'eau chaude de référence
C182: =IF(OR(ISBLANK(#REF!),#REF!=0),"","Warmwaterverbruik ingevuld door de gebruiker") -> 
A183: #VLOOKUP("Gelijkwaardige warmwaterverbruik per dag";Translations;LANG;FALSE) | B183: Gelijkwaardige warmwaterverbruik per dag | C183: Gelijkwaardige warmwaterverbruik per dag | D183: Consommation d'eau chaude en équivalent journalier
A184: #VLOOKUP("Profiel van het warmwaterverbruik";Translations;LANG;FALSE) | B184: Profiel van het warmwaterverbruik | C184: Profiel van het warmwaterverbruik | D184: Profil de puisage de l'eau chaude
A185: #VLOOKUP("Actualisatievoet";Translations;LANG;FALSE) | B185: Actualisatievoet | C185: Actualisatievoet | D185: Taux d'actualisation
A186: #VLOOKUP("BTW-percentage voor de economische balans";Translations;LANG;FALSE) | B186: =C186 -> BTW-percentage voor de economische balans | C186: BTW-percentage voor de economische balans | D186: Taux de TVA pour le bilan économique
A187: #VLOOKUP("Eenheidsprijs van de brandstof";Translations;LANG;FALSE) | B187: Eenheidsprijs van de brandstof | C187: Eenheidsprijs van de brandstof | D187: Prix unitaire du combustible
A188: #VLOOKUP("Brandstofprijs per kWh";Translations;LANG;FALSE) | B188: Brandstofprijs per kWh | C188: Brandstofprijs per kWh | D188: Prix par kWh de combustible
A189: #VLOOKUP("Subsidiepercentage gebruikt voor de berekening";Translations;LANG;FALSE) | B189: Subsidiepercentage gebruikt voor de berekening | C189: Subsidiepercentage gebruikt voor de berekening | D189: Taux de subside utilisé pour le calcul
A190: #VLOOKUP("Indicatief subsidiepercentage (Energiepremie) voor het beschouwde systeem";Translations;LANG;FALSE) | B190: Indicatief subsidiepercentage (Energiepremie) voor het beschouwde systeem | C190: Indicatief subsidiepercentage (Energiepremie) voor het beschouwde systeem | D190: Taux de subside (Prime Energie) indicatif en RBC pour le système considéré
A191: #VLOOKUP("Korting op de persoonsbelasting voor een energiebesparende investering";Translations;LANG;FALSE) | B191: Korting op de persoonsbelasting voor een energiebesparende investering | C191: Korting op de persoonsbelasting voor een energiebesparende investering | D191: Réduction d'IPP pour investissement économiseur d'énergie
A192: #VLOOKUP("Jaarlijkse prijsstijging van de energiedrager";Translations;LANG;FALSE) | B192: Jaarlijkse prijsstijging van de energiedrager | C192: Jaarlijkse prijsstijging van de energiedrager | D192: Augmentation annuelle du prix du vecteur énergétique
A193: #VLOOKUP("Onderhoudskost van de installatie als percentage van de investering";Translations;LANG;FALSE) | B193: Onderhoudskost van de installatie als percentage van de investering | C193: Onderhoudskost van de installatie als percentage van de investering | D193: Pourcentage de l'investissement affecté à la maintenance de l'installation
A194: #VLOOKUP("Zonnepanelen";Translations;LANG;FALSE) | B194: Zonnepanelen | C194: Zonnepanelen | D194: Capteurs solaires
A195: #VLOOKUP("Oriëntatie van de panelen gebruikt in de berekening";Translations;LANG;FALSE) | B195: Oriëntatie van de panelen gebruikt in de berekening | C195: Oriëntatie van de panelen gebruikt in de berekening | D195: Orientation des capteurs utilisée pour le calcul
A196: #VLOOKUP("Hellingsgraad van de panelen gebruikt in de berekening";Translations;LANG;FALSE) | B196: Hellingsgraad van de panelen gebruikt in de berekening | C196: Hellingsgraad van de panelen gebruikt in de berekening | D196: Inclinaison des capteurs utilisée pour le calcul
A197: #VLOOKUP("Correctiefactor";Translations;LANG;FALSE) | B197: Correctiefactor | C197: Correctiefactor | D197: Facteur Correctif
A198: #VLOOKUP("Economische levensduur van de installatie";Translations;LANG;FALSE) | B198: Economische levensduur van de installatie | C198: Economische levensduur van de installatie | D198: Durée de vie économique de l'installation
A199: #VLOOKUP("Vlakkeplaatcollectoren";Translations;LANG;FALSE) | B199: Vlakkeplaatcollectoren | C199: Vlakkeplaatcollectoren | D199: Atmosphériques plans vitrés
A200: #VLOOKUP("m³/dag op 60°C";Translations;LANG;FALSE) | B200: m³/dag op 60°C | C200: m³/dag op 60°C | D200: m³/jour à 60°C
... 66 more rows

Sheet Messages (hidden)
I1: Macro work, do not touch: | J1: Selected key: | K1: Title | L1: Tekst
A2: Each cell with input validation messagage should have a named range with as name a value in this column. | J2: LANG | K2: =IFERROR( IF(LEN(VLOOKUP(SelCell,A4:K356,2,FALSE))>0,VLOOKUP(SelCell,A4:K356,2,FALSE), ""),"") ->  | L2: =IFERROR(VLOOKUP(SelCell,A4:K356,3,FALSE),"") -> 
A3: Named Range | B3: Title input message | C3: Tekst input messge
A4: _MsgTypeReq | C4: =VLOOKUP("woontypes_verplicht",Translations,LANG,FALSE) -> Champ obligatoire. Si l'établissement ne correspond à aucun des types proposés, utiliser 'autre établissement'
A5: _MsgAppar | C5: =VLOOKUP("Enkel voor appartementsgebouwen",Translations,LANG,FALSE) -> Uniquement pour les immeubles à appartements
A6: _MsgTauxOcc | C6: =VLOOKUP("De standaard gebruikte bezettingsgraad is 100%",Translations,LANG,FALSE) -> Le taux d'occupation utilisé par défaut est de 100%
A7: _MsgSurface | C7: =VLOOKUP("Vloeroppervlakte inclusief buitenmuren",Translations,LANG,FALSE) -> Surface de plancher, murs extérieurs inclus
A8: _MsgPlat | C8: =VLOOKUP("De daken met een helling tussen 0 en 10° dienen als platte daken beschouwd te worden",Translations,LANG,FALSE) -> Les toitures présentant une inclinaison comprise entre 0 et 10° sont assimilées à des toitures plates.
A9: _MsgToitObst | C9: =VLOOKUP("Vul dit veld in als de nuttige dakoppervlakte (zonder schaduw of obstakels) kleiner is dan 90% van de nodige optimale dakoppervlakte.",Translations,LANG,FALSE) -> A remplir si la surface de toiture utile (sans obstacles ni ombrage) est inférieure à 90% de la surface de toiture nécessaire à l'optimum
A10: _MsgTotOrien | C10: =VLOOKUP("Indien hellend dak : oriëntatie van de helling die het best is blootgesteld aan het zuiden. Indien plat dak : oriëntatie van de gevel die het best naar het zuiden gericht is. De standaard oriëntatie is pal in het zuiden.",Translations,LANG,FALSE) -> Si "Toiture inclinée" : orientation du pan le mieux exposé. Si "Toiture plate" : orientation de la façade la plus proche du Sud. L'orientation utilisée par défaut est plein Sud.
A11: _MsgTotInc | C11: =VLOOKUP("hell_plat",Translations,LANG,FALSE) -> Les toitures présentant une inclinaison comprise entre 0 et 10° sont assimilées à des toitures plates. Si "Toiture plate" cette donnée n'est pas prise en considération.
A12: _MsgVecteurEnerg | C12: =VLOOKUP("Kies de energiedrager in de correcte regio: BHG: Brussels Hoofdstedelijk Gewest WG: Waals Gewest",Translations,LANG,FALSE) -> Sélectionner le vecteur énergétique et la Région. RBC : Région de Bruxelles-Capitale RW : Région wallonne
A13: _MsgConsEeau | C13: =VLOOKUP("Het warmwaterverbruik moet begrepen zijn tussen 300 en 20.000 m³/jaar (equivalent aan 1 à 50 m³/dag) ",Translations,LANG,FALSE) -> La consommation d'eau chaude doit être comprise entre 300 et 20.000 m³/an (l'équivalent de 1 à 50 m³/j)
A14: _MsgTempES | C14: =VLOOKUP("Duid de temperatuur van warmwateropslag of -productie aan. De standaard beschouwde waarde is 60°C.",Translations,LANG,FALSE) -> Indiquez la température de stockage ou de production de l'eau chaude. température considérée par défaut : 60°C
A15: _MsgScenEPB | B15: =VLOOKUP("Scenario voor BHG volgens EPB",Translations,LANG,FALSE) -> Scénario pour PEB RBC | C15: =VLOOKUP("De gekozen actualisatievoet reflecteert de interestvoet op kapitaal in de huidige markt. De standaard gekozen actualisatievoet bedraagt 5,5%.",Translations,LANG,FALSE) -> Le taux généralement choisi reflète le coût du capital et prend en compte le taux d'intérêt du marché pour une durée comparable. Taux d'actualisation par défaut : 5,5%
A16: _MsgTVA | C16: =VLOOKUP("Als u BTW recupereert, kies dan voor 0%. Alle berekeningen zullen dan uitgevoerd worden zonder BTW.",Translations,LANG,FALSE) -> Si vous récupérez la TVA cliquez sur 0%. Tous les calculs seront hors TVA.
A17: _MsgPrimes | C17: =VLOOKUP("Het standaard gebruikte subsidie-percentage is 0%. In het BHG kunnen bepaalde bedrijven naast de energiepremie ook aanspraak maken op - een fiscale korting - een subsidie van het BHG (25%, 35%, 45%) NIET CUMULEERBAAR met energiepremies",Translations,LANG,FALSE) -> Le niveau d'aide par défaut est de 0%. Outre les primes Energie, en RBC certaines catégories d'entreprises ont droit: - aux aides régionales (T)PE - 45% ; ME -35% ; GE -25% ) NON CUMULABLES avec la prime Energie - à une déduction fiscale pour inv. EE
A18: _MsgPIB | C18: =VLOOKUP("De belastingvermindering (voor appartementsgebouwen) werd afgeschaft op 31/12/2011 De standaardwaarde die gehanteerd wordt, is 0%.",Translations,LANG,FALSE) -> la Réduction d'Impôts Pour Personne physique (limitée aux immeubles à appartements) est supprimée depuis le 31/12/2011. La valeur utilisée par défaut est de 0%

Sheet Comments (hidden)
A2: Each cell with a comment should have a named range with as name a value in this column.
A3: Named Range | B3: (Title) | C3: Tekst
A4: _Cmt_Actualisation | C4: =VLOOKUP("5,5 % standaardwaarde",Translations,LANG,FALSE) -> 5,5 % par défaut
A5: _Cmt_Orient | C5: =VLOOKUP("Standaardwaarde: 0° = zuid",Translations,LANG,FALSE) -> Par défaut : 0° = sud
A6: _Cmt_InclOptim | C6: =VLOOKUP("OptimaleHellingsgraad",Translations,LANG,FALSE) -> Sur une toiture plate (0 à 10° d'inclinaison), l'inclinaison des capteurs est optimalisée en fonction de la donnée "Orientation de la toiture".
A7: _Cmt_LossesStock | C7: =VLOOKUP("Opslagverliezen afgetrokken",Translations,LANG,FALSE) -> Pertes de stockage déduites
A8: _Cmt_RendProd | C8: =VLOOKUP("Rekening houdend met het rendement van het productiepark voor elektriciteit en het elektrisch verbruik van de randapparatuur",Translations,LANG,FALSE) -> Compte tenu du rendement du parc de production d'électricité et de la consommation électrique des auxilliaires.
A9: _Cmt_ElecAux | C9: =VLOOKUP("Kost van het elektriciteitsverbruik van de randapparatuur + onderhoudskosten",Translations,LANG,FALSE) -> Coût de la consommation des auxiliaires + coût de maintenance.
A10: _Cmt_PrixEn | C10: =VLOOKUP("Houdt geen rekening met de stijging van de energieprijs",Translations,LANG,FALSE) -> Ne tient pas compte de l'augmentation du prix de l'énergie

Sheet Financiële balans (hidden)
A2: GEGEVENS
A4: Actualisatievoet | B4: [%] | C4: =IF(ISBLANK(Tool!C56)*OR(Tool!C56=0),Hyp!B8,Tool!C56/100) -> 5.50%
A5: Energieprijsstijging | B5: [%] | C5: =IF(ISBLANK(Tool!C64),LOOKUP(Tool!H7,SourceEnergie,EvoluPxE),Tool!C64/100) -> 5.87%
A6: Inflatiepercentage (indicatief, niet gebruikt in de financiele berekening) | B6: [%] | C6: =Hyp!B7 -> 2.20%
A8: Netto inv na subsidies en belastingaftrek | B8: =Tool!I58 -> EUR TVAc | C8: =IFERROR(Tool!H58,"") -> 37,220
A9: Besparing in jaar 1 | B9: =Tool!I59 -> EUR TVAc | C9: =Tool!H59 -> 886
A10: Operationele kosten | B10: =Tool!I55 -> EUR TVAc | C10: =IFERROR(Tool!H55,"") -> 104
A12: Financiële balans
A14: Eenvoudige terugverdientijd [TVT] | B14: [jaar] | C14: =IFERROR(C8/C9,"") -> 42.0
A15: Netto Actuele Waarde [NAW] | B15: EUR inv.-jaar | C15: =IFERROR(N45,"") -> -15,430
A16: IRR | B16: [%] | C16: =IFERROR(IRR(L20:L45),"") -> 1.63%
A18: ACTUELE KOSTEN - OPBRENGSTEN
H19: Jaar | I19: Netto Inv. | J19: Baten | K19: Kosten | L19: EBIT | M19: Geactualiseerde EBIT | N19: Geactualiseerde kosten / baten
H20: 0 | I20: =-C8 -> -37,220 | L20: =I20 -> -37,220
H21: 1 | J21: =C9*(1+$C$5) -> 938 | K21: =C$10 -> 104 | L21: =J21-K21 -> 834 | M21: =L21/(1+$C$4)^H21 -> 790 | N21: =M21+I20 -> -36,430
H22: 2 | J22: =J21*(1+$C$5) -> 993 | K22: =C$10 -> 104 | L22: =J22-K22 -> 889 | M22: =L22/(1+$C$4)^H22 -> 799 | N22: =N21+M22 -> -35,631
H23: 3 | J23: =J22*(1+$C$5) -> 1,051 | K23: 104 | L23: 947 | M23: =L23/(1+$C$4)^H23 -> 807 | N23: -34,825
H24: 4 | J24: 1,113 | K24: 104 | L24: 1,009 | M24: 814 | N24: -34,010
H25: 5 | J25: 1,178 | K25: 104 | L25: 1,074 | M25: 822 | N25: -33,188
H26: 6 | J26: 1,247 | K26: 104 | L26: 1,143 | M26: 829 | N26: -32,359
H27: 7 | J27: 1,321 | K27: 104 | L27: 1,217 | M27: 836 | N27: -31,523
H28: 8 | J28: 1,398 | K28: 104 | L28: 1,294 | M28: 843 | N28: -30,679
H29: 9 | J29: 1,480 | K29: 104 | L29: 1,376 | M29: =L29/(1+$C$4)^H29 -> 850 | N29: -29,829
H30: 10 | J30: 1,567 | K30: 104 | L30: 1,463 | M30: 857 | N30: -28,973
H31: 11 | J31: 1,659 | K31: 104 | L31: 1,555 | M31: 863 | N31: -28,110
H32: 12 | J32: 1,757 | K32: 104 | L32: 1,653 | M32: 869 | N32: -27,241
H33: 13 | J33: 1,860 | K33: 104 | L33: 1,756 | M33: 875 | N33: -26,365
H34: 14 | J34: 1,969 | K34: 104 | L34: 1,865 | M34: 881 | N34: -25,484
H35: 15 | J35: 2,084 | K35: 104 | L35: 1,980 | M35: 887 | N35: -24,597
H36: 16 | J36: 2,207 | K36: 104 | L36: 2,103 | M36: 893 | N36: -23,704
H37: 17 | J37: 2,336 | K37: 104 | L37: 2,232 | M37: 898 | N37: -22,806
H38: 18 | J38: 2,474 | K38: 104 | L38: 2,369 | M38: 904 | N38: -21,902
H39: 19 | J39: 2,619 | K39: 104 | L39: 2,515 | M39: 909 | N39: -20,993
H40: 20 | J40: 2,772 | K40: 104 | L40: 2,668 | M40: 915 | N40: -20,078
H41: 21 | J41: 2,935 | K41: 104 | L41: 2,831 | M41: 920 | N41: -19,159
H42: 22 | J42: 3,107 | K42: 104 | L42: 3,003 | M42: 925 | N42: -18,234
H43: 23 | J43: 3,290 | K43: 104 | L43: 3,186 | M43: 930 | N43: -17,304
H44: 24 | J44: 3,483 | K44: 104 | L44: 3,379 | M44: 935 | N44: -16,369
H45: 25 | J45: 3,687 | K45: 104 | L45: 3,583 | M45: 940 | N45: -15,430
L48: EBIT : Earnings before interest and tax

Sheet Hyp (hidden)
A1: Evolution prix énergies | B1: low BFP | C1: medium BFP | D1: High BFP | E1: Energy Trend 2030 | F1: Hyp ARGRBC études de faisabilité PEB (2008)
A2: augmentation annuelle du prix de l'électricité (%) | B2: 0.00% | C2: 3.47% | D2: 5.87% | E2: =E3 -> 2.86% | F2: =D2 -> 5.87% | H2: Source: http://www.bruxellesenvironnement.be/uploadedFiles/Contenu_du_site/Professionnels/Themes/Énergie/01_PEB_et_climat_intérieur/01Travaux_PEB/01_Qu_est_ce_que_les_travaux_PEB/AMB20080724_hypotheses_energetiques_PEB.pdf?langtype=2060
A3: augmentation annuelle du prix du gaz (%) | B3: 0.00% | C3: 3.47% | D3: 5.87% | E3: 2.86% | F3: =D3 -> 5.87% | H3: Source: http://www.bruxellesenvironnement.be/uploadedFiles/Contenu_du_site/Professionnels/Themes/Énergie/01_PEB_et_climat_intérieur/01Travaux_PEB/01_Qu_est_ce_que_les_travaux_PEB/AMB20080724_hypotheses_energetiques_PEB.pdf?langtype=2061
A4: augmentation annuelle du prix du mazout (%) | B4: 0.00% | C4: 1.48% | D4: 3.26% | E4: 2.02% | F4: =D4 -> 3.26% | H4: Source: http://www.bruxellesenvironnement.be/uploadedFiles/Contenu_du_site/Professionnels/Themes/Énergie/01_PEB_et_climat_intérieur/01Travaux_PEB/01_Qu_est_ce_que_les_travaux_PEB/AMB20080724_hypotheses_energetiques_PEB.pdf?langtype=2062
A5: augmentation annuelle du prix des pellets | B5: 0.00% | D5: =D4 -> 3.26% | E5: =E4 -> 2.02% | F5: =D5 -> 3.26%
A7: Inflation | B7: 2.20%
A8: Taux d'actualisation | B8: =0.055 -> 5.5%
A9: Durée de vie économique de l'installation | B9: 25 | C9: ans
A11: Rendement appoint | B11: Rdt combustion | D11: Rdt global annuel
B12: % | C12: % | D12: % | E12: %
A13: Chaudière à condensation | B13: 102 | C13: 108 | D13: 70 | E13: 100
A14: Chaudière air pulsé | B14: 88 | C14: 95 | D14: 70 | E14: 90
A15: Chaudière atmosphérique | B15: 80 | C15: 90 | D15: 60 | E15: 80
A16: Chauffe-eau sans veilleuse | B16: 88 | C16: 95 | D16: 60 | E16: 80
A17: Chauffe-eau à veilleuse | B17: 80 | C17: 90 | D17: 40 | E17: 70
A19: % InvBrut Maintenance | B19: 0.25%
A20: Cout électricité auxilliaire | B20: ='Eco Data'!W3 -> 0.1456 | C20: EUR/kWh HTVA
A24: Définitions
A26: Fraction solaire = Qsol net/(Qsol net+Qaux,net)
A27: Qsol net + Qaux net = Qd
A29: Le rendement utile d'une chaudière est son rendement instantané lorsque le brûleur fonctionne.
A30: C'est le rapport entre la puissance contenue dans le combustible et la puissance thermique transmise à l'eau de chauffage

Sheet General Data (hidden)
A1: Secteur
B2: =VLOOKUP("Privaat",Translations,LANG,FALSE) -> Privé
B3: =VLOOKUP("Publiek",Translations,LANG,FALSE) -> Public
A5: O_N
B6: =VLOOKUP("Nee",Translations,LANG,FALSE) -> Non
B7: =VLOOKUP("Ja",Translations,LANG,FALSE) -> Oui
A9: CategoriePEB
A10: 1.16 | B10: Autre affectation
A11: 1.9 | B11: Bureaux et services
A12: 1.10 | B12: Enseignement
A13: 1.7 | B13: Immeuble à appartements
A14: 1.8 | B14: Résidentiel commun
A15: 1.11 | B15: Soins de santé
A16: 1.15 | B16: Sport
B18: TypeEtablissement | C18: ConsoEtablissement [l/j@60°] | D18: UnitéConsomECS | E18: UnitéHabitation | F18: Profil
A19: 1.7 | B19: =VLOOKUP("A-Centra voor gehandicapten, IMS, IMP",Translations,LANG,FALSE) -> A-Centre pour handicapés, IMS, IMP, | C19: 80 | D19: =VLOOKUP("Bedden",Translations,LANG,FALSE) -> Lits | F19: A
A20: 1.11 | B20: =VLOOKUP("B-Hospitalen, klinieken",Translations,LANG,FALSE) -> B-Hôpital, clinique | C20: 65 | D20: =VLOOKUP("Bedden",Translations,LANG,FALSE) -> Lits | F20: A
A21: 1.8 | B21: =VLOOKUP("C-Rust- en verzorgingstehuizen",Translations,LANG,FALSE) -> C-Maison de repos et de soins | C21: 65 | D21: =VLOOKUP("Bedden",Translations,LANG,FALSE) -> Lits | F21: A
A22: 1.8 | B22: =VLOOKUP("D-Strafinrichtingen",Translations,LANG,FALSE) -> D-Etablissement pénitentiaire | C22: =AVERAGE(C24,87) -> 64 | D22: =VLOOKUP("Gedetineerden",Translations,LANG,FALSE) -> Pensionnaires | F22: A
A23: 1.7 | B23: =VLOOKUP("E-Serviceflats",Translations,LANG,FALSE) -> E-Appart hotel, Flat hotel | C23: 40 | D23: =VLOOKUP("Bewoners",Translations,LANG,FALSE) -> Occupants | F23: A
A24: 1.8 | B24: =VLOOKUP("F-Hotels, motels, jeugdherbergen, pensions",Translations,LANG,FALSE) -> F-Hôtel, motel, auberge, pension | C24: 40 | D24: =VLOOKUP("Bewoners",Translations,LANG,FALSE) -> Occupants | F24: A
A25: 1.7 | B25: =VLOOKUP("G-Gebouw van 4 tot 15 appartementen",Translations,LANG,FALSE) -> G-Logement de 4 à 15 appartements | C25: 40 | D25: =VLOOKUP("Bewoners",Translations,LANG,FALSE) -> Occupants | E25: =VLOOKUP("Wooneenheden",Translations,LANG,FALSE) -> Logements | F25: A
A26: 1.8 | B26: =VLOOKUP("H-Rusthuizen",Translations,LANG,FALSE) -> H-Maison de repos | C26: =AVERAGE(50,28) -> 39 | D26: =VLOOKUP("Bedden",Translations,LANG,FALSE) -> Lits | F26: A
A27: 1.7 | B27: =VLOOKUP("I-Gebouw van meer dan 15 appartementen",Translations,LANG,FALSE) -> I-Logement de plus de 15 appartements | C27: 35 | D27: =VLOOKUP("Bewoners",Translations,LANG,FALSE) -> Occupants | E27: =VLOOKUP("Wooneenheden",Translations,LANG,FALSE) -> Logements | F27: A
A28: 1.8 | B28: =VLOOKUP("J-Internaten",Translations,LANG,FALSE) -> J-Internat | C28: =35*5/7 -> 25 | D28: =VLOOKUP("Bedden",Translations,LANG,FALSE) -> Lits | F28: C
A29: 1.7 | B29: =VLOOKUP("K-Sociale huisvesting",Translations,LANG,FALSE) -> K-Logement social | C29: 25 | D29: =VLOOKUP("Bewoners",Translations,LANG,FALSE) -> Occupants | E29: =VLOOKUP("Wooneenheden",Translations,LANG,FALSE) -> Logements | F29: A
A30: 1.8 | B30: =VLOOKUP("L-Onthaalcentra",Translations,LANG,FALSE) -> L-Centres d'accueil | C30: =AVERAGE(25,43)*5/7 -> 24 | D30: =VLOOKUP("Bewoners + personeelsleden",Translations,LANG,FALSE) -> Occupants + membres du personnel | F30: B
A31: 1.9 | B31: =VLOOKUP("M-Kapsalons",Translations,LANG,FALSE) -> M-Salons de coiffure | C31: =15*5/7 -> 11 | D31: =VLOOKUP("Klanten per dag",Translations,LANG,FALSE) -> Clients par jour | F31: B
A32: 1.11 | B32: =VLOOKUP("N-Poliklinieken en daghospitalen",Translations,LANG,FALSE) -> N-Polyclinique, hôpital de jour | C32: 10 | D32: =VLOOKUP("Bewoners + personeelsleden",Translations,LANG,FALSE) -> Occupants + membres du personnel | F32: A
A33: 1.15 | B33: =VLOOKUP("O-Sportcentra, sporthallen, fitness",Translations,LANG,FALSE) -> O-Centre sportif, hall des sports, fitness | C33: =10*336/365 -> 9 | D33: =VLOOKUP("Sporters per dag",Translations,LANG,FALSE) -> Sportifs par jour | F33: D
A34: 1.13 | B34: =VLOOKUP("P-Restaurants",Translations,LANG,FALSE) -> P-Restaurants | C34: =7*5/7 -> 5 | D34: =VLOOKUP("Klanten per dag",Translations,LANG,FALSE) -> Clients par jour | F34: B
A35: 1.10 | B35: =VLOOKUP("Q-Crêches",Translations,LANG,FALSE) -> Q-Crêche | C35: =6*5/7 -> 4 | D35: =VLOOKUP("Kinderen",Translations,LANG,FALSE) -> Enfants | F35: B
A36: 1.11 | B36: =VLOOKUP("R-Zorgcentra, medisch-sociale hulpcentra of mentale zorgcentra",Translations,LANG,FALSE) -> R-Centre de soins, aide médico-sociale, santé mentale | C36: =5*5/7 -> 4 | D36: =VLOOKUP("Bewoners + personeelsleden",Translations,LANG,FALSE) -> Occupants + membres du personnel | F36: B
A37: 1.9 | B37: =VLOOKUP("S-Administraties",Translations,LANG,FALSE) -> S-Administration | C37: =2 -> 2 | D37: =VLOOKUP("Bedienden",Translations,LANG,FALSE) -> Employés | F37: B
A38: 1.9 | B38: =VLOOKUP("T-Kantoren",Translations,LANG,FALSE) -> T-Bureau d'entreprise | C38: =2 -> 2 | D38: =VLOOKUP("Bedienden",Translations,LANG,FALSE) -> Employés | F38: B
A39: 1.10 | B39: =VLOOKUP("U-CLB-centra",Translations,LANG,FALSE) -> U-Centre PMS | C39: 2 | D39: =VLOOKUP("Bewoners + personeelsleden",Translations,LANG,FALSE) -> Occupants + membres du personnel | F39: C
A40: 1.10 | B40: =VLOOKUP("V-Scholen en universiteiten",Translations,LANG,FALSE) -> V-Ecole, Université | C40: 2 | D40: =VLOOKUP("Studenten",Translations,LANG,FALSE) -> Etudiants | F40: C
A41: 1.16 | B41: =VLOOKUP("X-Andere soorten vestigingen",Translations,LANG,FALSE) -> X-Autre type d'établissement | C41: 0 | D41: =VLOOKUP("Bewoners",Translations,LANG,FALSE) -> Occupants
A43: UniteFrequentation
A44: 1.8 | B44: Kamers
A45: 1.9 | B45: Klanten per dag
A46: 1.10 | B46: Scholieren
A47: 1.9 | B47: Bedienden
A48: 1.8 - 1.10 | B48: Kinderen
A49: 1.8 - 1.10 | B49: Studenten
A50: 1.8 | B50: Bedden
A51: 1.7 | B51: Residentiebedden
A52: 1.7 | B52: Bewoners
A53: 1.8 - 1.10 - 1.11 | B53: Bewoners + personeelsleden
A54: 1.8 | B54: Gedetineerden
A55: 1.15 | B55: Bezoekers per jaar

Sheet Tech Data (hidden)
A7: Toit | C7: InclinOpt | D7: FactCorr | E7: OrientOpt | F7: ST_Scoll
B8: =VLOOKUP("Hellend dak",Translations,LANG,FALSE) -> Toiture inclinée | C8: =X13 -> 45° | D8: =Y17 -> 1.28 | E8: =X14 -> 1-Est | F8: =C23 -> 1.2
B9: =VLOOKUP("Plat dak",Translations,LANG,FALSE) -> Toiture plate | C9: =Z20 -> 10° | D9: =Z19 -> 1.14 | E9: =X14 -> 1-Est | F9: =C24 -> 3.35 | X9: SDR geen vertaling
A11: OrientationT | C11: InclinaisonT | D11: 0° | E11: 5° | F11: 10° | G11: 15° | H11: 20° | I11: 25° | J11: 30° | K11: 35° | L11: 40° | M11: 45° | N11: 50° | O11: 55° | P11: 60° | Q11: 65° | R11: 70° | S11: 75° | T11: 80° | U11: 85° | V11: 90° | X11: Interface Utilisateur
B12: =VLOOKUP("1-Oost",Translations,LANG,FALSE) -> 1-Est | C12: -90° | D12: 1.13 | E12: 1.14 | F12: 1.14 | G12: 1.16 | H12: 1.17 | I12: 1.19 | J12: 1.21 | K12: 1.23 | L12: 1.25 | M12: 1.28 | N12: 1.32 | O12: 1.36 | P12: 1.40 | Q12: 1.45 | R12: 1.51 | S12: 1.57 | T12: 1.65 | U12: 1.73 | V12: 1.83 | X12: TI
B13: =VLOOKUP("3-Oost zuidoost",Translations,LANG,FALSE) -> 2-Est Sud Est | C13: -68° | D13: 1.13 | E13: 1.12 | F13: 1.11 | G13: 1.11 | H13: 1.11 | I13: 1.11 | J13: 1.12 | K13: 1.13 | L13: 1.14 | M13: 1.16 | N13: 1.18 | O13: 1.21 | P13: 1.25 | Q13: 1.29 | R13: 1.34 | S13: 1.40 | T13: 1.47 | U13: 1.54 | V13: 1.64 | X13: =IF(ISBLANK(Tool!C40),$L$11,Tool!C40) -> 45° | Y13: =MATCH(X13,D11:V11) -> 10 | Z13: Position tableau
B14: =VLOOKUP("4-West",Translations,LANG,FALSE) -> 3-Ouest | C14: 90° | D14: 1.13 | E14: 1.14 | F14: 1.14 | G14: 1.15 | H14: 1.17 | I14: 1.19 | J14: 1.20 | K14: 1.23 | L14: 1.25 | M14: 1.28 | N14: 1.32 | O14: 1.35 | P14: 1.40 | Q14: 1.45 | R14: 1.50 | S14: 1.57 | T14: 1.64 | U14: 1.73 | V14: 1.82 | X14: =IF(OR(ISBLANK(Tool!C39),Tool!C39=0),$B$16,Tool!C39) -> 1-Est | Y14: =MATCH(X14,OrientationT) -> 1 | Z14: Position tableau
B15: =VLOOKUP("5-West zuidwest",Translations,LANG,FALSE) -> 4-Ouest Sud Ouest | C15: 68° | D15: 1.13 | E15: 1.12 | F15: 1.11 | G15: 1.11 | H15: 1.10 | I15: 1.11 | J15: 1.11 | K15: 1.12 | L15: 1.14 | M15: 1.15 | N15: 1.18 | O15: 1.21 | P15: 1.24 | Q15: 1.28 | R15: 1.33 | S15: 1.38 | T15: 1.45 | U15: 1.52 | V15: 1.61
B16: =VLOOKUP("6-Zuid",Translations,LANG,FALSE) -> 5-Sud | C16: 0° | D16: 1.13 | E16: 1.09 | F16: 1.06 | G16: 1.04 | H16: 1.02 | I16: 1.01 | J16: 1.00 | K16: 1.00 | L16: 1.00 | M16: 1.01 | N16: 1.03 | O16: 1.05 | P16: 1.08 | Q16: 1.11 | R16: 1.15 | S16: 1.21 | T16: 1.27 | U16: 1.35 | V16: 1.44 | X16: Facteur correctif | Y16: =HLOOKUP(X13,D11:V20,MATCH(X14,OrientationT)+1) -> 1.28 | Z16: lookup
B17: =VLOOKUP("7-Zuidoost",Translations,LANG,FALSE) -> 6-Sud Est | C17: -45° | D17: 1.13 | E17: 1.11 | F17: 1.09 | G17: 1.07 | H17: 1.06 | I17: 1.05 | J17: 1.05 | K17: 1.06 | L17: 1.06 | M17: 1.08 | N17: 1.10 | O17: 1.12 | P17: 1.15 | Q17: 1.19 | R17: 1.23 | S17: 1.29 | T17: 1.35 | U17: 1.42 | V17: 1.52 | X17: Facteur correctif | Y17: =OFFSET(C11,MATCH(X14,OrientationT),MATCH(X13,D11:V11)) -> 1.28 | Z17: offset
B18: =VLOOKUP("8-Zuidwest",Translations,LANG,FALSE) -> 7-Sud Ouest | C18: 45° | D18: 1.13 | E18: 1.11 | F18: 1.08 | G18: 1.07 | H18: 1.06 | I18: 1.05 | J18: 1.05 | K18: 1.05 | L18: 1.06 | M18: 1.07 | N18: 1.09 | O18: 1.11 | P18: 1.14 | Q18: 1.18 | R18: 1.22 | S18: 1.27 | T18: 1.33 | U18: 1.40 | V18: 1.49 | X18: TP | Y18: optimum théorique | Z18: valeur sélectionnée
B19: =VLOOKUP("9-Zuid zuidoost",Translations,LANG,FALSE) -> 8-Sud Sud Est | C19: -23° | D19: 1.13 | E19: 1.10 | F19: 1.07 | G19: 1.05 | H19: 1.03 | I19: 1.02 | J19: 1.01 | K19: 1.01 | L19: 1.02 | M19: 1.03 | N19: 1.05 | O19: 1.07 | P19: 1.09 | Q19: 1.13 | R19: 1.17 | S19: 1.23 | T19: 1.29 | U19: 1.36 | V19: 1.46 | X19: Facteur correctif | Y19: =MIN(OFFSET(D11,MATCH(X14,OrientationT,0),0):OFFSET(V11,MATCH(X14,OrientationT,0),0)) -> 1.13 | Z19: =MIN(OFFSET(F11,MATCH(X14,OrientationT),0):OFFSET(V11,MATCH(X14,OrientationT),0)) -> 1.14
B20: =VLOOKUP("10-Zuid zuidwest",Translations,LANG,FALSE) -> 9-Sud Sud Ouest | C20: 23° | D20: 1.13 | E20: 1.10 | F20: 1.07 | G20: 1.05 | H20: 1.03 | I20: 1.02 | J20: 1.01 | K20: 1.01 | L20: 1.02 | M20: 1.03 | N20: 1.04 | O20: 1.06 | P20: 1.09 | Q20: 1.12 | R20: 1.17 | S20: 1.22 | T20: 1.28 | U20: 1.35 | V20: 1.44 | X20: Inclinaison optimale | Y20: =OFFSET(C11,0,MATCH(MIN(OFFSET(D11,MATCH(X14,OrientationT,0),0):OFFSET(V11,MATCH(X14,OrientationT,0),0)),OFFSET(D11,MATCH(X14,OrientationT,0),0):OFFSET(V11,MATCH(X14,OrientationT,0),0),0)) -> 0 | Z20: =OFFSET(E11,0,MATCH(MIN(OFFSET(F11,MATCH(X14,OrientationT,0),0):OFFSET(V11,MATCH(X14,OrientationT,0),0)),OFFSET(F11,MATCH(X14,OrientationT,0),0):OFFSET(V11,MATCH(X14,OrientationT,0),0),0)) -> 10
A22: SurfUtile
B23: S utile TI / S coll | C23: 1.2
B24: S utile TP/ S coll | C24: 3.35
A26: VecteurE | C26: TypeAppoint | D26: Rdt combustion | F26: RdtUtil | G26: Prod mixte | H26: RdtUtil | I26: ProdSep | J26: Hypothèses pertes max. selon CD-Rom Energie +
B27: Gaz naturel | C27: =VLOOKUP("A-Atmosferische ketel op aardgas",Translations,LANG,FALSE) -> A-Chaudière atmosphérique au gaz | D27: 78.0% | E27: 0.78 | F27: 0.61 | G27: =($D27-$L$28)/(1+$L$29*($L$32*5800/1750-1)) -> 61% | H27: =($D27-$L$28)/(1+$L$29*($P$32*5800/1750-1)) -> 69% | I27: 0.69 | L27: Anc. chaudières | N27: Nouv. chaudières | P27: Prod. Séparée
B28: Mazout | C28: =VLOOKUP("B-Atmosferische ketel op stookolie",Translations,LANG,FALSE) -> B-Chaudière atmosphérique au mazout | D28: 78.0% | E28: 0.78 | F28: 0.61 | G28: =($D28-$L$28)/(1+$L$29*($L$32*5800/1750-1)) -> 61% | H28: =($D28-$L$28)/(1+$L$29*($P$32*5800/1750-1)) -> 69% | I28: 0.69 | J28: Pertes vers chaufferie : | L28: 6.0% | N28: 3.0%
B29: Gaz naturel | C29: =VLOOKUP("C-Ketel HR PLUS",Translations,LANG,FALSE) -> C-Chaudière HR PLUS | D29: 88.6% | E29: 0.89 | F29: 0.70 | G29: =($D29-$L$28)/(1+$L$29*($L$32*5800/1750-1)) -> 70% | H29: =($D29-$L$28)/(1+$L$29*($P$32*5800/1750-1)) -> 79% | I29: 0.79 | J29: Pertes à l'arrêt : | L29: =0.006+0.015 -> 2.1% | N29: 1.0%
B30: Gaz naturel | C30: =VLOOKUP("D-Ketel HR TOP (condensatie)",Translations,LANG,FALSE) -> D-Chaudière HR TOP (condensation) | D30: =0.963 -> 96.3% | E30: 1.01 | F30: 0.90 | G30: =($D30-$N$28)/(1+$N$29*($N$32*5800/1750-1)) -> 88% | H30: =($D30-$N$28)/(1+$N$29*($P$32*5800/1750-1)) -> 91% | I30: 0.96
B31: Mazout | C31: =VLOOKUP("E-OPTIMAZ-ketel van na 1999",Translations,LANG,FALSE) -> E-Chaudière OPTIMAZ d'après 1999 | D31: =0.842 -> 84.2% | E31: 0.92 | F31: 0.82 | G31: =($D31-$N$28)/(1+$N$29*($N$32*5800/1750-1)) -> 77% | H31: =($D31-$N$28)/(1+$N$29*($P$32*5800/1750-1)) -> 79% | I31: 0.87
B32: Mazout | C32: =VLOOKUP("F-OPTIMAZ-ketel van vóór 1999",Translations,LANG,FALSE) -> F-Chaudière OPTIMAZ d'avant 1999 | D32: =0.8 -> 80.0% | E32: 0.90 | F32: 0.70 | G32: =($D32-$L$28)/(1+$L$29*($L$32*5800/1750-1)) -> 62% | H32: =($D32-$L$28)/(1+$L$29*($P$32*5800/1750-1)) -> 71% | I32: 0.80 | J32: Facteur surdimensionnement : | L32: 3 | N32: 2 | P32: 1
B33: Mazout | C33: =VLOOKUP("G-OPTIMAZ-ketel elite (condensatie)",Translations,LANG,FALSE) -> G-Chaudière OPTIMAZ élite (condensation) | D33: =0.925 -> 92.5% | E33: 0.98 | F33: 0.87 | G33: =($D33-$N$28)/(1+$N$29*($N$32*5800/1750-1)) -> 85% | H33: =($D33-$N$28)/(1+$N$29*($P$32*5800/1750-1)) -> 87% | I33: 0.92
B34: Granulés de bois | C34: =VLOOKUP("H-Pelletketel van minder dan 10 jaar oud",Translations,LANG,FALSE) -> H-Chaudière pellets de moins de 10 ans | D34: 94.0% | E34: 0.93 | F34: 0.83 | G34: =($D34-$N$28)/(1+$N$29*($N$32*5800/1750-1)) -> 86% | H34: =($D34-$N$28)/(1+$N$29*($P$32*5800/1750-1)) -> 89% | I34: 0.88
B35: Granulés de bois | C35: =VLOOKUP("I-Pelletketel van meer dan 10 jaar oud",Translations,LANG,FALSE) -> I-Chaudière pellets de plus de 10 ans | D35: 90.0% | E35: 0.93 | F35: 0.73 | G35: =($D35-$L$28)/(1+$L$29*($L$32*5800/1750-1)) -> 71% | H35: =($D35-$L$28)/(1+$L$29*($P$32*5800/1750-1)) -> 80% | I35: 0.83
B36: Electricité | C36: =VLOOKUP("J-Elektrische weerstand",Translations,LANG,FALSE) -> J-Résistance électrique | D36: 99.5% | E36: 0.99 | F36: 0.95 | G36: 95% | H36: =G36 -> 95% | I36: 0.95
A39: RdtInst | E39: 1.09 | F39: =E39-(E30-F30) -> 0.98
E40: =Tool!C46/100 -> 0.9 | F40: =(E40-E28)/(E39-E28)*(F39-F28)+F28 -> 0.75
A42: UnitéConsoECS | B42: liters/dag
B43: m³/dag
B44: m³/jaar | V44: CONTRAINTE DE SURFACE EN TOITURE
A46: ProfilHebdo | C46: Fsol | D46: Scoll | E46: Vstock | F46: Nstock | G46: Mstock | H46: SurfStock | I46: Qsol | J46: CombEco | K46: EprimEco | L46: InvBrutHTVA | M46: InvBrutTVAc | N46: CoutOp | O46: CoutCombEco | P46: CoutCombEcoTVAc | Q46: CoutNetCombEco | R46: CoutNetCombEcoTVAc | S46: CO2Eco | T46: CO2EcoLT | U46: CoutCO2 | V46: Fsol | W46: Scoll | X46: Vstock | Y46: Nstock | Z46: Mstock | AA46: SurfStock | AB46: Qsol | AC46: CombEco | AD46: EprimEco | AE46: InvBrutHTVA | AF46: InvBrutTVAc | AG46: CoutOp | AH46: CoutCombEco | AI46: CoutCombEcoTVAc | AJ46: CoutNetCombEco | AK46: CoutNetCombEcoTVAc | AL46: CO2Eco | AM46: CO2EcoLT | AN46: CoutCO2 | AO46: JourPuis
B47: =VLOOKUP("A-7 dagen op 7 gedurende het hele jaar",Translations,LANG,FALSE) -> A-7 jours sur 7 toute l'année | C47: ='A-7sur7'!B35 -> 0.34 | D47: ='A-7sur7'!D5*Tool!$H$26 -> 23.0 | E47: ='A-7sur7'!B14 -> 1.3 | F47: ='A-7sur7'!B12 -> 1 | G47: =ROUNDUP('A-7sur7'!B15,-2) -> 1700 | H47: =ROUNDUP('A-7sur7'!B16,1) -> 1.6 | I47: ='A-7sur7'!B10 -> 9,904 | J47: ='A-7sur7'!D33 -> 13,192 | K47: ='A-7sur7'!B34 -> 12,749 | L47: ='A-7sur7'!B23*Tool!$H$26 -> 30,761 | M47: =L47+(L47*Tool!$H$15) -> 37,220 | N47: ='A-7sur7'!B26 -> 86.02691108 | O47: ='A-7sur7'!B36 -> 0.073 | P47: ='A-7sur7'!B37 -> 0.088 | Q47: ='A-7sur7'!B38 -> 0.07267326125 | R47: ='A-7sur7'!B39 -> 0.08793464611 | S47: ='A-7sur7'!B40/1000 -> 2.8 | T47: ='A-7sur7'!B41 -> 69 | U47: ='A-7sur7'!B42 -> 347 | V47: ='A-7sur7'!H35 ->  | W47: ='A-7sur7'!H5 ->  | X47: ='A-7sur7'!H14 ->  | Z47: =ROUNDUP('A-7sur7'!H15,-2) ->  | AA47: =ROUNDUP('A-7sur7'!H16,1) ->  | AB47: ='A-7sur7'!H10 ->  | AC47: ='A-7sur7'!J33 ->  | AD47: ='A-7sur7'!H34 ->  | AE47: ='A-7sur7'!H23 ->  | AF47: =AE47+(AE47*Tool!$H$15) ->  | AG47: ='A-7sur7'!H26 ->  | AH47: ='A-7sur7'!H36 ->  | AI47: ='A-7sur7'!H37 ->  | AJ47: ='A-7sur7'!H38 ->  | AK47: ='A-7sur7'!H39 ->  | AL47: ='A-7sur7'!H40/1000 ->  | AM47: ='A-7sur7'!H41 ->  | AN47: ='A-7sur7'!H42 ->  | AO47: ='A-7sur7'!B2 -> 365
B48: =VLOOKUP("B-5 dagen op 7 gedurende het hele jaar",Translations,LANG,FALSE) -> B-5 jours sur 7 toute l'année | C48: ='B-5sur7'!B35 -> 0.46 | D48: ='B-5sur7'!D5*Tool!$H$26 -> 33.5 | E48: ='B-5sur7'!B14 -> 1.8 | F48: ='B-5sur7'!B12 -> 1 | G48: =ROUNDUP('B-5sur7'!B15,-2) -> 2300 | H48: =ROUNDUP('B-5sur7'!B16,1) -> 2 | I48: ='B-5sur7'!B10 -> 13,482 | J48: ='B-5sur7'!D33 -> 17,959 | K48: ='B-5sur7'!B34 -> 17,313 | L48: ='B-5sur7'!B23*Tool!$H$26 -> 42,045 | M48: =L48+(L48*Tool!$H$15) -> 50,875 | N48: ='B-5sur7'!B26 -> 119.9155156 | O48: ='B-5sur7'!B36 -> 0.073 | P48: ='B-5sur7'!B37 -> 0.088 | Q48: ='B-5sur7'!B38 -> 0.07296737803 | R48: ='B-5sur7'!B39 -> 0.08829052742 | S48: ='B-5sur7'!B40/1000 -> 3.8 | T48: ='B-5sur7'!B41 -> 94 | U48: ='B-5sur7'!B42 -> 349 | V48: ='B-5sur7'!H35 ->  | W48: ='B-5sur7'!H5 ->  | X48: ='B-5sur7'!H14 ->  | Z48: =ROUNDUP('B-5sur7'!H15,-2) ->  | AA48: =ROUNDUP('B-5sur7'!H16,1) ->  | AB48: ='B-5sur7'!H10 ->  | AC48: ='B-5sur7'!J33 ->  | AD48: ='B-5sur7'!H34 ->  | AE48: ='B-5sur7'!H23 ->  | AF48: =AE48+(AE48*Tool!$H$15) ->  | AG48: ='B-5sur7'!H26 ->  | AH48: ='B-5sur7'!H36 ->  | AI48: ='B-5sur7'!H37 ->  | AJ48: ='B-5sur7'!H38 ->  | AK48: ='B-5sur7'!H39 ->  | AL48: ='B-5sur7'!H40/1000 ->  | AM48: ='B-5sur7'!H41 ->  | AN48: ='B-5sur7'!H42 ->  | AO48: ='B-5sur7'!B2 -> 261
B49: =VLOOKUP("C-5 dagen op 7 uitgezonderd schoolvakanties",Translations,LANG,FALSE) -> C-5 jours sur 7 hors vacances scolaires | C49: ='C-5sur7HVS'!B35 -> 0.41 | D49: ='C-5sur7HVS'!D5*Tool!$H$26 -> 39.2 | E49: ='C-5sur7HVS'!B14 -> 2.0 | F49: ='C-5sur7HVS'!B12 -> 1 | G49: =ROUNDUP('C-5sur7HVS'!B15,-2) -> 2500 | H49: =ROUNDUP('C-5sur7HVS'!B16,1) -> 2.1 | I49: ='C-5sur7HVS'!B10 -> 11,949 | J49: ='C-5sur7HVS'!D33 -> 15,917 | K49: ='C-5sur7HVS'!B34 -> 15,160 | L49: ='C-5sur7HVS'!B23*Tool!$H$26 -> 47,620 | M49: =L49+(L49*Tool!$H$15) -> 57,620 | N49: ='C-5sur7HVS'!B26 -> 137.2704589 | O49: ='C-5sur7HVS'!B36 -> 0.093 | P49: ='C-5sur7HVS'!B37 -> 0.113 | Q49: ='C-5sur7HVS'!B38 -> 0.09324818712 | R49: ='C-5sur7HVS'!B39 -> 0.1128303064 | S49: ='C-5sur7HVS'!B40/1000 -> 3.3 | T49: ='C-5sur7HVS'!B41 -> 82 | U49: ='C-5sur7HVS'!B42 -> 451 | V49: ='C-5sur7HVS'!H35 ->  | W49: ='C-5sur7HVS'!H5 ->  | X49: ='C-5sur7HVS'!H14 ->  | Z49: =ROUNDUP('C-5sur7HVS'!H15,-2) ->  | AA49: =ROUNDUP('C-5sur7HVS'!H16,1) ->  | AB49: ='C-5sur7HVS'!H10 ->  | AC49: ='C-5sur7HVS'!J33 ->  | AD49: ='C-5sur7HVS'!H34 ->  | AE49: ='C-5sur7HVS'!H23 ->  | AF49: =AE49+(AE49*Tool!$H$15) ->  | AG49: ='C-5sur7HVS'!H26 ->  | AH49: ='C-5sur7HVS'!H36 ->  | AI49: ='C-5sur7HVS'!H37 ->  | AJ49: ='C-5sur7HVS'!H38 ->  | AK49: ='C-5sur7HVS'!H39 ->  | AL49: ='C-5sur7HVS'!H40/1000 ->  | AM49: ='C-5sur7HVS'!H41 ->  | AN49: ='C-5sur7HVS'!H42 ->  | AO49: ='C-5sur7HVS'!B2 -> 200
B50: =VLOOKUP("D-7 dagen op 7 uitgezonderd schoolvakanties",Translations,LANG,FALSE) -> D-7 jours sur 7 hors vacances scolaires | C50: ='D-7sur7HVS'!B35 -> 0.30 | D50: ='D-7sur7HVS'!D5*Tool!$H$26 -> 23.9 | E50: ='D-7sur7HVS'!B14 -> 1.3 | F50: ='D-7sur7HVS'!B12 -> 1 | G50: =ROUNDUP('D-7sur7HVS'!B15,-2) -> 1600 | H50: =ROUNDUP('D-7sur7HVS'!B16,1) -> 1.6 | I50: ='D-7sur7HVS'!B10 -> 8,818 | J50: ='D-7sur7HVS'!D33 -> 11,746 | K50: ='D-7sur7HVS'!B34 -> 11,285 | L50: ='D-7sur7HVS'!B23*Tool!$H$26 -> 31,539 | M50: =L50+(L50*Tool!$H$15) -> 38,162 | N50: ='D-7sur7HVS'!B26 -> 88.55550672 | O50: ='D-7sur7HVS'!B36 -> 0.084 | P50: ='D-7sur7HVS'!B37 -> 0.101 | Q50: ='D-7sur7HVS'!B38 -> 0.08368835222 | R50: ='D-7sur7HVS'!B39 -> 0.1012629062 | S50: ='D-7sur7HVS'!B40/1000 -> 2.4 | T50: ='D-7sur7HVS'!B41 -> 61 | U50: ='D-7sur7HVS'!B42 -> 401 | V50: ='D-7sur7HVS'!H35 ->  | W50: ='D-7sur7HVS'!H5 ->  | X50: ='D-7sur7HVS'!H14 ->  | Z50: =ROUNDUP('D-7sur7HVS'!H15,-2) ->  | AA50: =ROUNDUP('D-7sur7HVS'!H16,1) ->  | AB50: ='D-7sur7HVS'!H10 ->  | AC50: ='D-7sur7HVS'!J33 ->  | AD50: ='D-7sur7HVS'!H34 ->  | AE50: ='D-7sur7HVS'!H23 ->  | AF50: =AE50+(AE50*Tool!$H$15) ->  | AG50: ='D-7sur7HVS'!H26 ->  | AH50: ='D-7sur7HVS'!H36 ->  | AI50: ='D-7sur7HVS'!H37 ->  | AJ50: ='D-7sur7HVS'!H38 ->  | AK50: ='D-7sur7HVS'!H39 ->  | AL50: ='D-7sur7HVS'!H40/1000 ->  | AM50: ='D-7sur7HVS'!H41 ->  | AN50: ='D-7sur7HVS'!H42 ->  | AO50: ='D-7sur7HVS'!B2 -> 304
C51: % | D51: m² | E51: m³ | G51: kg | H51: m² | I51: =VLOOKUP("kWh/jaar",Translations,LANG, FALSE) -> kWh/an | J51: =LOOKUP(Calculs!B17,SourceEnergie,UnitéConsoAn) -> kWh/an | K51: =VLOOKUP("kWh/jaar",Translations,LANG, FALSE) -> kWh/an | L51: =VLOOKUP("EUR BTW excl",Translations,LANG, FALSE) -> EUR HTVA | M51: =VLOOKUP("EUR BTW incl",Translations,LANG, FALSE) -> EUR TVAc | N51: =VLOOKUP("EUR BTW excl",Translations,LANG, FALSE) -> EUR HTVA | O51: =VLOOKUP("EUR/kWh BTW excl",Translations,LANG, FALSE) -> EUR/kWh HTVA | P51: =VLOOKUP("EUR/kWh BTW incl",Translations,LANG, FALSE) -> EUR/kWh TVAc | Q51: =VLOOKUP("EUR/kWh BTW excl",Translations,LANG, FALSE) -> EUR/kWh HTVA | R51: =VLOOKUP("EUR/kWh BTW incl",Translations,LANG, FALSE) -> EUR/kWh TVAc | S51: =VLOOKUP("ton/jaar",Translations,LANG, FALSE) -> tonnes/an | T51: =VLOOKUP("ton",Translations,LANG, FALSE) -> tonne | U51: ="EUR/" & VLOOKUP("ton",Translations,LANG, FALSE) -> EUR/tonne | V51: % | W51: m² | X51: m³ | Z51: kg | AA51: m² | AB51: kWh/jaar | AC51: =LOOKUP(Calculs!B17,SourceEnergie,UnitéConsoAn) -> kWh/an | AD51: kWh/jaar | AE51: EUR BTW excl | AF51: EUR BTW incl | AG51: EUR BTW excl | AH51: EUR/kWh BTW excl | AI51: EUR/kWh BTW incl | AJ51: EUR/kWh BTW excl | AK51: EUR/kWh BTW incl | AL51: ton/jaar | AM51: ton | AN51: EUR/ton | AO51: jours
A53: Temp_ECS | B53: °C
B54: 35
B55: 40
B56: 45
B57: 50
B58: 55
B59: 60
B60: 65
B61: 70
A63: Temp_EFR | B63: 10
A65: M Stock/ Vol Stock | B65: kg/l
B66: 1.2

Sheet Energy Data (hidden)
A2: UnitéComb | B2: kWh/an
B3: l/an
B4: m³/an
B5: t/an
A6: Conversion Unités
B7: 1 | C7: GJ | D7: 277.78 | E7: kWh
B8: 1 | C8: MJ | D8: 0.28 | E8: kWh
B9: 1 | C9: kWh | D9: 3.60 | E9: MJ
B10: 1 | C10: kcal | D10: 1.163 | E10: Wh
A12: Pouvoir calorifique combustible
A13: Vecteur | B13: PCI | C13: unité | D13: CO2 sur PCI | E13: unité
A14: Butane | B14: 12.72 | C14: kWh/kg
A15: Butane | B15: 45.73 | C15: MJ/kg | D15: 65.9 | E15: kg/GJ
A16: Butane | B16: 26.52 | C16: MJ/l
A17: Électricité (RBC) | B17: 3.60 | C17: MJ/kWh | D17: 0.395 | E17: kg/kWh
A18: Électricité (RW) | B18: 3.60 | C18: MJ/kWh | D18: 0.456 | E18: kg/kWh
A19: Fuel domestique | B19: 9.94 | C19: kWh/l | D19: 0.306 | E19: kg/kWh | F19: 0.264
B20: 35.87 | C20: MJ/l
B21: 10.75 | C21: kWh/m³ | D21: 0.251 | E21: kg/kWh | F21: 0.198
A22: Gaz naturel H (RW) | B22: =B21*D9 -> 38.70 | C22: MJ/m³
A23: Gaz naturel H (RW) | B23: =B22/B21 -> 3.60 | C23: MJ/kWh
A24: Gaz naturel L (RBC) | B24: 9.25 | C24: kWh/m³ | D24: 0.217 | E24: kg/kWh
A25: Gaz naturel L (RBC) | B25: =B24*D9 -> 33.30 | C25: MJ/m³
A26: Gaz naturel L (RBC) | B26: =B25/B24 -> 3.60 | C26: MJ/kWh
A27: Houille (charbon) | B27: 8.14 | C27: kWh/kg | D27: 0.385 | E27: kg/kWh
A28: Pellets | B28: =AVERAGE(4.9,5.4) -> 5.15 | C28: kWh/kg | D28: 0.030 | E28: kg/kWh
A29: Propane | B29: 12.87 | C29: kWh/kg | D29: 0.240 | E29: kg/kWh
A30: Propane | B30: 6.59 | C30: kWh/l
A31: Propane | B31: 46.35 | C31: MJ/kg | D31: 64.9 | E31: kg/GJ
A32: Propane | B32: 23.72 | C32: MJ/l
A34: Masse volumique
A35: butane | B35: 580 | C35: kg/m³
A36: propane | B36: 510 | C36: kg/m³
A38: Rendement du parc de production d'électricité | B38: =0.404 -> 0.404

Sheet Eco Data (hidden)
A2: SourceEnergie | B2: UnitéConsoAn | C2: RdtUtilAtm | D2: RdtUtilOld | E2: RdtUtilNew | F2: RdtUtilCond | G2: PCI | H2: Unité PCI | I2: FactConv MJ | J2: (MJ/unité) | K2: FactConvEprim | L2: FactEmis | M2: unité | N2: Emission CO2 | O2: unité | P2: Prix HTVA (2012-S1) | Q2: UnitéPrix | R2: PrixDéfaut | S2: UnitéPrixDéfaut HTVA | T2: PrixDéfautTVAc | U2: UnitéPrixDéfaut TVAc | V2: Facteur conversion defaut/kWh | W2: Prix_kWh | X2: UnitéPrix_kWh | Y2: Prix_kWh_TVAc | Z2: UnitéPrix_kWh_TVAc | AA2: Prix moyen hyp High BFP [EUR/kWh] | AB2: EvoluPxE
A3: =VLOOKUP("1-Elektriciteit (BHG)",Translations,LANG,FALSE) -> 1-Electricité (RBC) | B3: =VLOOKUP("kWh/jaar",Translations,LANG,FALSE) -> kWh/an | C3: ='Tech Data'!G27 -> 0.61 | D3: ='Tech Data'!G27 -> 0.61 | E3: ='Tech Data'!G27 -> 0.61 | F3: ='Tech Data'!G27 -> 0.61 | G3: ='Energy Data'!B17 -> 3.60 | H3: MJ/kWh | I3: ='Energy Data'!B17/'Energy Data'!B38 -> 8.9 | J3: MJ/kWh | K3: ='Energy Data'!B38 -> 0.40 | L3: ='Energy Data'!D17 -> 0.395 | M3: kg/kWh | N3: =L3 -> 0.395 | O3: kg/kwh | P3: 0.1456 | Q3: EUR/kWh | R3: =P3 -> 0.1456 | S3: =VLOOKUP("EUR/kWh BTW excl",Translations,LANG,FALSE) -> EUR/kWh HTVA | T3: =R3*1.21 -> 0.1762 | U3: =VLOOKUP("EUR/kWh BTW incl",Translations,LANG,FALSE) -> EUR/kWh TVAc | V3: 1.000 | W3: =V3*R3 -> 0.1456 | X3: =VLOOKUP("EUR/kWh BTW excl",Translations,LANG,FALSE) -> EUR/kWh HTVA | Y3: =W3*1.21 -> 0.1762 | Z3: =VLOOKUP("EUR/kWh BTW incl",Translations,LANG,FALSE) -> EUR/kWh TVAc | AA3: =W3*((1+Hyp!D2)^25)/2 -> 0.30 | AB3: =Hyp!D2 -> 0.0587
A4: =VLOOKUP("2-Electriciteit (WG)",Translations,LANG,FALSE) -> 2-Electricité (RW) | B4: =VLOOKUP("kWh/jaar",Translations,LANG,FALSE) -> kWh/an | C4: ='Tech Data'!G27 -> 0.61 | D4: ='Tech Data'!G27 -> 0.61 | E4: ='Tech Data'!G27 -> 0.61 | F4: ='Tech Data'!G27 -> 0.61 | G4: ='Energy Data'!B18 -> 3.60 | H4: MJ/kWh | I4: =I3 -> 8.9 | J4: MJ/kWh | K4: =K3 -> 0.40 | L4: ='Energy Data'!D18 -> 0.456 | M4: kg/kWh | N4: =L4 -> 0.456 | O4: kg/kwh | P4: 0.1456 | Q4: EUR/kWh | R4: =P4 -> 0.1456 | S4: =VLOOKUP("EUR/kWh BTW excl",Translations,LANG,FALSE) -> EUR/kWh HTVA | T4: =R4*1.21 -> 0.1762 | U4: =VLOOKUP("EUR/kWh BTW incl",Translations,LANG,FALSE) -> EUR/kWh TVAc | V4: 1.000 | W4: 0.1456 | X4: EUR/kWh HTVA | Y4: 0.1762 | Z4: EUR/kWh TVAc | AA4: =W4*((1+Hyp!D2)^25)/2 -> 0.30 | AB4: =Hyp!D2 -> 0.0587
A5: =VLOOKUP("3-Aardgas (BHG)",Translations,LANG,FALSE) -> 3-Gaz naturel (RBC) | B5: =VLOOKUP("kWh/jaar",Translations,LANG,FALSE) -> kWh/an | C5: ='Tech Data'!G28 -> 0.61 | D5: ='Tech Data'!G28 -> 0.61 | E5: ='Tech Data'!G29 -> 0.70 | F5: ='Tech Data'!G30 -> 0.88 | G5: ='Energy Data'!B24 -> 9.25 | H5: kWh/m³ | I5: ='Energy Data'!B26 -> 3.6 | J5: MJ/kWh | K5: 1.00 | L5: ='Energy Data'!D24 -> 0.217 | M5: kg/kWh | N5: =L5*'Energy Data'!B24 -> 2.007 | O5: kg/m³ | P5: 0.0555 | Q5: EUR/kWh | R5: =P5 -> 0.0555 | S5: =VLOOKUP("EUR/kWh BTW excl",Translations,LANG,FALSE) -> EUR/kWh HTVA | T5: =R5*1.21 -> 0.0672 | U5: =VLOOKUP("EUR/kWh BTW incl",Translations,LANG,FALSE) -> EUR/kWh TVAc | V5: =3.6/I5 -> 1.000 | W5: 0.0555 | X5: EUR/kWh HTVA | Y5: 0.0672 | Z5: EUR/kWh TVAc | AA5: =W5*((1+Hyp!D3)^25)/2 -> 0.12 | AB5: =Hyp!D3 -> 0.0587
A6: =VLOOKUP("4-Aardgas (WG)",Translations,LANG,FALSE) -> 4-Gaz naturel (RW) | B6: =VLOOKUP("kWh/jaar",Translations,LANG,FALSE) -> kWh/an | C6: ='Tech Data'!G28 -> 0.61 | D6: ='Tech Data'!G28 -> 0.61 | E6: ='Tech Data'!G29 -> 0.70 | F6: ='Tech Data'!G30 -> 0.88 | G6: ='Energy Data'!B21 -> 10.75 | H6: kWh/m³ | I6: ='Energy Data'!B23 -> 3.6 | J6: =J3 -> MJ/kWh | K6: 1.00 | L6: ='Energy Data'!D21 -> 0.251 | M6: =M3 -> kg/kWh | N6: =L6*'Energy Data'!B21 -> 2.698 | O6: kg/m³ | P6: 0.0555 | Q6: =Q3 -> EUR/kWh | R6: =P6 -> 0.0555 | S6: =VLOOKUP("EUR/kWh BTW excl",Translations,LANG,FALSE) -> EUR/kWh HTVA | T6: =R6*1.21 -> 0.0672 | U6: =VLOOKUP("EUR/kWh BTW incl",Translations,LANG,FALSE) -> EUR/kWh TVAc | V6: =V3 -> 1.000 | W6: 0.0555 | X6: EUR/kWh HTVA | Y6: 0.0672 | Z6: EUR/kWh TVAc | AA6: =W6*((1+Hyp!D3)^25)/2 -> 0.12 | AB6: =Hyp!D3 -> 0.0587
A7: =VLOOKUP("5-Houtpellets",Translations,LANG,FALSE) -> 5-Granulés de bois | B7: =VLOOKUP("ton/jaar",Translations,LANG,FALSE) -> tonnes/an | C7: ='Tech Data'!G31 -> 0.77 | D7: ='Tech Data'!G31 -> 0.77 | E7: ='Tech Data'!G32 -> 0.62 | F7: ='Tech Data'!G32 -> 0.62 | G7: ='Energy Data'!B28 -> 5.15 | H7: kWh/kg | I7: ='Energy Data'!B28*'Energy Data'!D9 -> 18.5 | J7: MJ/kg | K7: 1.00 | L7: ='Energy Data'!D28 -> 0.030 | M7: kg/kWh | N7: =L7 -> 0.030 | O7: kg/kWh | P7: =R7/('Energy Data'!B28*1000) -> 0.0422 | Q7: EUR/kWh | R7: =T7/1.06 -> 217.2956 | S7: =VLOOKUP("EUR/ton BTW excl",Translations,LANG,FALSE) -> EUR/tonne HTVA | T7: =AVERAGE(200,241,250) -> 230.3333 | U7: =VLOOKUP("EUR/ton BTW incl",Translations,LANG,FALSE) -> EUR/tonne TVAc | V7: =1/('Energy Data'!B28*1000) -> 0.000 | W7: 0.0422 | X7: EUR/kWh HTVA | Y7: 0.0511 | Z7: EUR/kWh TVAc | AA7: =W7*((1+Hyp!D5)^25)/2 -> 0.05 | AB7: =Hyp!D5 -> 0.0326
A8: =VLOOKUP("6-Stookolie",Translations,LANG,FALSE) -> 6-Mazout | B8: =VLOOKUP("l stookolie/jaar",Translations,LANG,FALSE) -> l mazout/an | C8: ='Tech Data'!G33 -> 0.85 | D8: ='Tech Data'!G34 -> 0.86 | E8: ='Tech Data'!G35 -> 0.71 | F8: ='Tech Data'!G36 -> 0.95 | G8: ='Energy Data'!B19 -> 9.94 | H8: kWh/l | I8: ='Energy Data'!B20 -> 35.9 | J8: MJ/l | K8: 1.00 | L8: ='Energy Data'!D19 -> 0.306 | M8: kg/kWh | N8: =L8*'Energy Data'!B19 -> 3.042 | O8: kg/l | P8: =T8/1.21 -> 0.7383 | Q8: =VLOOKUP("EUR/liter",Translations,LANG,FALSE) -> EUR/litre | R8: =P8 -> 0.7383 | S8: =VLOOKUP("EUR/liter BTW excl",Translations,LANG,FALSE) -> EUR/litre HTVA | T8: =T40 -> 0.8933 | U8: =VLOOKUP("EUR/liter BTW incl",Translations,LANG,FALSE) -> EUR/litre TVAc | V8: =1/'Energy Data'!B19 -> 0.101 | W8: 0.0743 | X8: EUR/kWh HTVA | Y8: 0.0899 | Z8: EUR/kWh TVAc | AA8: =W8*((1+Hyp!D4)^25)/2 -> 0.08 | AB8: =Hyp!D4 -> 0.0326
C10: Default Price [EUR/kWh] | D10: Prix moyen hyp High BFP [EUR/kWh] | E10: Prix moyen hyp IBGE [EUR/kWh]
A11: EvoluPxE | B11: Electricité | C11: =W3 -> 0.1456 | D11: =$C11*((1+Hyp!D2)^25)/2 -> 0.3030 | E11: =$C11*((1+Hyp!F2)^25)/2 -> 0.3030
B12: Gaz | C12: =W5 -> 0.0555 | D12: =C12*((1+Hyp!D3)^25)/2 -> 0.1155 | E12: =$C12*((1+Hyp!F3)^25)/2 -> 0.1155
B13: Granulés de bois | C13: =W7 -> 0.0422 | D13: =C13*((1+Hyp!D5)^25)/2 -> 0.0470 | E13: =$C13*((1+Hyp!F5)^25)/2 -> 0.0470
B14: Mazout | C14: =W8 -> 0.0743 | D14: =C14*((1+Hyp!D4)^25)/2 -> 0.0828 | E14: =$C14*((1+Hyp!F4)^25)/2 -> 0.0828
A16: TVA | B16: 0% | C16: 0.00 | D16: =VLOOKUP("EUR BTW excl",Translations,LANG,FALSE) -> EUR HTVA | E16: =VLOOKUP("EUR/jaar BTW excl",Translations,LANG,FALSE) -> EUR/an HTVA
B17: 6% | C17: 0.06 | D17: =VLOOKUP("EUR BTW incl",Translations,LANG,FALSE) -> EUR TVAc | E17: =VLOOKUP("EUR/jaar BTW incl",Translations,LANG,FALSE) -> EUR/an TVAc
B18: 21% | C18: 0.21 | D18: =VLOOKUP("EUR BTW incl",Translations,LANG,FALSE) -> EUR TVAc | E18: =VLOOKUP("EUR/jaar BTW incl",Translations,LANG,FALSE) -> EUR/an TVAc
A20: Inv Eco E | B20: 40% | C20: 3600 | D20: EUR
P23: Tarif officiel moyen des produits pétroliers en EURO, derniers 24 mois
A24: PxMoyenE | B24: Année | C24: Mazout (FPB) | D24: Mazout (FPB) | E24: Mazout (Informazout) | F24: GN RBC | H24: Contenu énergétique équivalent | P24: SPF Economie Statistics Belgium | Q24: Gasoil Extra | S24: Gasoil de chauffage
C25: EUR/l HTVA | D25: EUR/l TVAC | E25: EUR/l TVAC | F25: EUR/kWh TVAC | H25: 2000 | I25: l | J25: mazout | Q25: Gasoil chauffage | R25: Gasoil chauffage | S25: Gasoil chauffage | T25: Gasoil chauffage
B26: 1988 | C26: 0.149 | D26: 0.1745 | H26: =H25*11.864 -> 23728 | I26: kWh | J26: GN | Q26: Extra (plus de 2000 l) (€/L) | R26: Extra (moins de 2000 l) (€/L) | S26: moins de 2000 l (€/L) | T26: plus de 2000 l (€/L)
B27: 1989 | C27: 0.175 | D27: 0.2048 | I27: pcs/pci | J27: 0.902 | P27: Mois de 2012 | Q27: Prix moyen TVA incl. | R27: Prix moyen TVA incl. | S27: Prix moyen TVA incl. | T27: Prix moyen TVA incl.
B28: 1990 | C28: 0.1882 | D28: 0.2201 | P28: 1 | Q28: 0.9004 | R28: 0.9263 | S28: 0.9121 | T28: 0.8862
B29: 1991 | C29: 0.1916 | D29: 0.2241 | P29: 2 | Q29: 0.9137 | R29: 0.9396 | S29: 0.9288 | T29: 0.9028
B30: 1992 | C30: 0.1671 | D30: 0.1988 | P30: 3 | Q30: 0.9413 | R30: 0.9672 | S30: 0.9505 | T30: 0.9246
B31: 1993 | C31: 0.178 | D31: 0.2127 | P31: 4 | Q31: 0.9294 | R31: 0.9556 | S31: 0.9407 | T31: 0.9145
B32: 1994 | C32: 0.1663 | D32: 0.2005 | P32: 5 | Q32: 0.8949 | R32: 0.9211 | S32: 0.9142 | T32: 0.888
B33: 1995 | C33: 0.1559 | D33: 0.1879 | P33: 6 | Q33: 0.8478 | R33: 0.8739 | S33: 0.8592 | T33: 0.833
B34: 1996 | C34: 0.1879 | D34: 0.2273 | P34: 7 | Q34: 0.8863 | R34: 0.9125 | S34: 0.8886 | T34: 0.8624
B35: 1997 | C35: 0.1943 | D35: 0.235 | P35: 8 | Q35: 0.9458 | R35: 0.9719 | S35: 0.9458 | T35: 0.9197
B36: 1998 | C36: 0.1567 | D36: 0.1896 | P36: 9 | Q36: 0.9526 | R36: 0.9788 | S36: 0.9483 | T36: 0.9221
B37: 1999 | C37: 0.1817 | D37: 0.2199 | P37: 10 | Q37: 0.9479 | R37: 0.9745 | S37: 0.9443 | T37: 0.9177
B38: 2000 | C38: 0.3032 | D38: 0.3669 | E38: =734/2000 -> 0.3670 | F38: =831/H26 -> 0.0350 | P38: 11 | Q38: 0.9212 | R38: 0.9478 | S38: 0.9124 | T38: 0.8858
B39: 2001 | C39: 0.2751 | D39: 0.3329 | E39: =673/2000 -> 0.3365 | F39: =910/H26 -> 0.0384 | P39: 12 | Q39: 0.8815 | R39: 0.9082 | S39: 0.8898 | T39: 0.8632
B40: 2002 | C40: 0.2527 | D40: 0.3057 | E40: =611/2000 -> 0.3055 | F40: =849/H26 -> 0.0358 | P40: Prix Moyen | Q40: =AVERAGE(Q28:Q39) -> 0.9136 | R40: =AVERAGE(R28:R39) -> 0.9398 | S40: =AVERAGE(S28:S39) -> 0.9196 | T40: =AVERAGE(T28:T39) -> 0.8933
B41: 2003 | C41: 0.2614 | D41: 0.3163 | E41: =633/2000 -> 0.3165 | F41: =871/H26 -> 0.0367
B42: 2004 | C42: 0.3114 | D42: 0.3767 | E42: =753/2000 -> 0.3765 | F42: =862/H26 -> 0.0363
B43: 2005 | C43: 0.4260 | D43: 0.5155 | E43: =958/2000 -> 0.4790 | F43: =992/H26 -> 0.0418
B44: 2006 | C44: 0.4767 | D44: 0.5768 | E44: =1151/2000 -> 0.5755 | F44: =1168/H26 -> 0.0492
B45: 2007 | C45: 0.4810 | D45: 0.5820 | E45: =1165/2000 -> 0.5825 | F45: =1078/H26 -> 0.0454
B46: 2008 | C46: 0.6283 | D46: 0.7602 | E46: =1520/2000 -> 0.7600 | F46: =1516/H26 -> 0.0639
B47: 2009 | C47: 0.4105 | D47: 0.4968 | E47: =993/2000 -> 0.4965 | F47: =1257/H26 -> 0.0530
B48: Moyenne | C48: =AVERAGE(C38:C47) -> 0.3826 | D48: =AVERAGE(D38:D47) -> 0.4630 | E48: =AVERAGE(E38:E47) -> 0.4596 | F48: =AVERAGE(F38:F47) -> 0.0436

Sheet Calculs (hidden)
A2: Descriptif Etablissement | B2: Données Utilisateur | C2: Estimations QuickScan | D2: Unité
A3: TypeEtablissement | B3: =Tool!C32 -> T-Bureau d'entreprise | C3: =B3 -> T-Bureau d'entreprise
A4: N UniteFrequentation | B4: =Tool!C33 -> 90 | C4: =B4 -> 90 | D4: =Tool!D33 -> Employés
A5: Taux d'occupation | B5: =Tool!C35 -> 100 | C5: =IF(B5=0,1,B5/100) -> 100%
A6: Consommation ECS (Rratio) | C6: =C4*C5*LOOKUP(B3,TypeEtablissement,ConsoEtablissement)/1000 -> 0.2 | D6: m³/jour @60°C
F7: Description | G7: Valeur | H7: Unité
F8: Taux d'occupation par défaut | G8: 100%
A9: Profil Consommation | B9: =Tool!H13 -> A-7 jours sur 7 toute l'année | F9: Taux d'occupation minimum | G9: 20%
A10: Consommation ECS introduite par Utilisateur | B10: =Tool!C49 -> 500 | D10: =Tool!D49 -> m³/an | F10: ConsoECS/Ratio = min | G10: 10%
A11: Consommation ECS équ en m³/j | B11: =IF(OR(ISBLANK(D10),D10=0),0,B10/365) -> 1.37 | D11: m³/jour | F11: ConsoECS/Ratio = max | G11: 1500%
A12: Température ECS stockée/produite | B12: =IF(ISBLANK(Tool!C50),60,LEFT(Tool!C50,2)) -> 60 | D12: °C
A13: Consommation ECS à 60°C | B13: =IF(OR(ISBLANK(B12),B12=0),0,B11*(B12-'Tech Data'!B63)/(60-'Tech Data'!B63)) -> 1.37 | D13: m³/jour @60°C
A14: Consommation ECS acceptable | B14: =IF(ISNUMBER(B13),IF(OR(AND(B13>=C6*G10,B13<=C6*G11),C6=0),TRUE,FALSE),FALSE) -> TRUE
A15: Consommation ECS (Utilisateur) | B15: =IF(B14,B13,"") -> 1.4 | D15: m³/jour @60°C
A16: Consommation ECS (Utilisateur) | B16: =B13*365/LOOKUP(B9,ProfilHebdo,JourPuis) -> 1.37 | D16: m³/jour de puisage @60°C
A17: Source d'énergie | B17: =IF(ISBLANK(Tool!C43),'Eco Data'!A5,Tool!C43) -> 3-Gaz naturel (RBC) | C17: =B17 -> 3-Gaz naturel (RBC)
A18: Consommation de la source d'énergie pour ECS | B18: =Tool!C51 -> 25,000 | C18: =B18 -> 25000 | D18: =LOOKUP(B17,SourceEnergie,UnitéConsoAn) -> kWh/an
A19: Consommation de la source d'énergie pour ECS + chauffage | B19: =Tool!C52 -> 50,000 | C19: =B19 -> 50000 | D19: =LOOKUP(B17,SourceEnergie,UnitéConsoAn) -> kWh/an
A21: NPV calculée par Excel | B21: =NPV('Financiële balans'!C4,'Financiële balans'!L21:L45)+'Financiële balans'!I20 -> -15,430 | D21: EUR
A22: FactConvPrixDefaut Combustible | B22: =Tool!H16 -> 0.067 | C22: =IF(ISBLANK(Tool!C43),'Eco Data'!W5,LOOKUP(Tool!C43,SourceEnergie,FactConvDefaut)) -> 1.000
A23: Type d'appoint | B23: =IF(ISBLANK(Tool!C45),'Tech Data'!C27,Tool!C45) -> C-Chaudière HR PLUS
A24: Rdt Instantané Utilisateur | B24: =Tool!C46/100 -> 0.90
A25: Rdt Instantané Utilisateur acceptable | B25: =ISNUMBER(Tool!C46) -> TRUE
A26: Rdt Utile Prod ECS mixte ou séparée | B26: =IF(B24<'Tech Data'!E28,B24*0.83,'Tech Data'!F40) -> 0.75 | C26: =IF(Tool!C44="Oui",LOOKUP(B23,TypeAppoint,RdtUtilProdSep),LOOKUP(B23,TypeAppoint,RdtUtil)) -> 0.79 | D26: %
A27: Investissement Brut | B27: =IF(B36,LOOKUP(B9,ProfilHebdo,InvBrutHTVA),LOOKUP(B9,ProfilHebdo,InvBrutHTVAmax)) -> 30,761 | D27: EUR HTVA
A28: Taux de subsides | B28: =IF(ISBLANK(Tool!C67),0,Tool!C67) -> 0 | D28: %
A29: Taux de subsides indicatif RBC 2013 | C29: =IF(ISBLANK(Tool!C34),IF(Tool!H54*0.5<2500+(Tool!H40-4)*200,Tool!H54*0.5,2500+(Tool!H40-4)*200),IF(Tool!H54*0.5<Tool!C34*2500+(Tool!H40-Tool!C34*4)*200,Tool!H54*0.5,Tool!C34*2500+(Tool!H40-Tool!C34*4)*200)) -> 18610 | D29: EUR
A30: Remise IPP acceptée | B30: =IF(ISTEXT(Tool!D34),TRUE,FALSE) -> FALSE
A31: Remise IPP | B31: =IF(B30,MIN(B27*Tool!H20,Tool!C34*'Eco Data'!C20),0) -> 0 | D31: EUR
A33: Type toiture | B33: =IF(ISBLANK(Tool!C37),'Tech Data'!B9,Tool!C37) -> Toiture inclinée
A34: Marge de sécurité | B34: 1.1
A35: Surface max toiture utile | B35: =IF(ISBLANK(Tool!C38),FALSE,Tool!C38) -> FALSE | D35: m²
A36: Surface max toiture utile suffisante | B36: =IF(Tool!H37>B37*B34,FALSE,TRUE) -> TRUE
A37: Surface max capteurs correspondante | B37: =IF(B35,B35/(LOOKUP(B33,Toit,ST_Scoll)),10000) -> 10000 | D37: m²

Sheet A-7sur7 (hidden)
A1: DHWMDayVol | B1: =Tool!H12 -> 1.4 | E1: m³/j@60°C
A2: Days of SHW consumption | B2: =52*7+1 -> 365
A3: Resulting equations (A.HWMDayVol+B)
B4: A | C4: B | D4: Result | G4: Contrainte en toiture
A5: Scoll | B5: 15.8290 | C5: -3.7535 | D5: =IF(B1=0,FALSE,B5*$B$1+C5) -> 17.9 | E5: m² | G5: Scoll max | H5: =IF(Calculs!B36,"",Calculs!B37) ->  | I5: m²
A6: Storage | B6: 1.0747 | C6: -0.1495 | D6: =IF(B1=0,FALSE,B6*$B$1+C6) -> 1.3 | E6: m³
A7: Specific production | B7: =-0.6192 -> -0.6192 | C7: 553.1900 | D7: =IF(B1=0,FALSE,B7*$B$1+C7) -> 552.3 | E7: kWh/m².an
A9: Simulation Results
A10: Qsol,net | B10: =D7*D5 -> 9,904 | C10: kWh/an | H10: =D7*H5 ->  | I10: kWh/an
A11: Qpar | B11: =10*D5 -> 179 | C11: kWhel/an | H11: =10*H5 ->  | I11: kWhel/an
A12: Number of tanks | B12: =IF(B1=0,0,(IF(D6<2,1,IF(D6<4,2,IF(D6<10,3,4))))) -> 1 | H12: -
A13: Vol per tank | B13: =D6/B12 -> 1.3 | C13: m³ | H13: -
A14: Vstock | B14: =B12*B13 -> 1.3 | C14: m³ | H14: =B17*H5/1000 ->  | I14: m³
A15: Total storage weight | B15: =B12*(1.1*(-0.005*B13^3 - 5.2178*B13^2 + 199.65*B13 + 26.215)+B13*1000) -> 1,632 | C15: kg | H15: =H14/B14*B15 ->  | I15: kg
A16: Total storage floor surface | B16: =B12*((448.1*LN(B13) + 1115.7)/1000)^2+0.5*(B12-1)*(448.1*LN(B13) + 1115.7)/1000 -> 1.5 | C16: m² | H16: =H14/B14*B16 ->  | I16: m²
A17: Specific storage volume | B17: =D6*1000/D5 -> 73.8 | C17: l/m²
A19: Costs
A20: Total cost excl. Storage | B20: =IF(B1=0,0,1.15*1672*D5^(1-0.1514)-(20.203*(33*D5)^(1-0.3386)+1000+33*D5)) -> 19,302 € | C20: € excl. VAT
A21: Storage material cost | B21: =(20.203*(B13*1000)^(1-0.3386))*B12 -> 2,344 € | C21: € excl. VAT
A22: Storage installation | B22: =1000+(B12*B13*1000) -> 2,323 € | C22: € excl. VAT
A23: Total cost | B23: =SUM(B20:B22) -> 23,968 € | C23: € excl. VAT | H23: =B27*H5 ->  | I23: € excl. VAT
A24: Maintenance Cost | B24: =B23*Hyp!B19 -> 60 € | C24: € excl. VAT | H24: =H23*Hyp!B19 ->  | I24: € excl. VAT
A25: Auxiliary Power Cost | B25: =B11*Hyp!B20 -> 26 € | C25: € excl. VAT | H25: =H11*Hyp!B20 ->  | I25: € excl. VAT
A26: Operational Costs | B26: =SUM(B24:B25) -> 86 € | C26: € excl. VAT | H26: =SUM(H24:H25) ->  | I26: € excl. VAT
A27: Specific Cost | B27: =B23/D5 -> 1,337 | C27: €/m² HTVA
A29: Calculated Results
A30: Qd | B30: =B1*'Energy Data'!D10*(60-'Tech Data'!B63)*365 -> 29,075 | C30: kWh/an
A31: Qaux,net | B31: =B30-B10 -> 19,171 | C31: kWh/an | H31: =B30-H10 ->  | I31: kWh/an
A32: Qpar,prim | B32: =B11/'Energy Data'!B38 -> 444 | C32: kWh/an | H32: =H11/'Energy Data'!B38 ->  | I32: kWh/an
A33: CombEco | B33: =B10/Tool!H8 -> 13,192 | C33: kWh/an | D33: =B33*(LOOKUP(Calculs!B17,SourceEnergie,FactConvDefaut)) -> 13,192 | E33: =LOOKUP(Calculs!B17,SourceEnergie,UnitéConsoAn) -> kWh/an | H33: =H10/Tool!H8 ->  | I33: kWh/an | J33: =H33*(LOOKUP(Calculs!B17,SourceEnergie,FactConvDefaut)) ->  | K33: =LOOKUP(Calculs!B17,SourceEnergie,UnitéConsoAn) -> kWh/an
A34: EprimEco | B34: =(B33-B32)/(LOOKUP(Calculs!B17,SourceEnergie,FactConvEprim)) -> 12,749 | C34: kWh/an | H34: =(H33-H32)/(LOOKUP(Calculs!B17,SourceEnergie,FactConvEprim)) ->  | I34: kWh/an
A35: Fsol | B35: =B10/(B10+B31) -> 0.34 | H35: =H10/(H10+H31) -> 
A36: Cout kWh Eco HTVA | B36: =B23/(B33*Hyp!B9) -> 0.073 | C36: €/kWh excl. VAT | H36: =H23/(H33*Hyp!B9) ->  | I36: €/kWh incl. VAT
A37: Cout kWh Eco TVAc | B37: =(B23+(B23*Tool!H15))/(B33*Hyp!B9) -> 0.088 | C37: €/kWh incl. VAT | H37: =(H23+(H23*Tool!H15))/(H33*Hyp!B9) ->  | I37: €/kWh excl. VAT
A38: Cout Net kWh Eco HTVA | B38: =(B23*(1-Calculs!$B$28/100)-Calculs!$B$31)/(B33*Hyp!$B$9) -> 0.073 | C38: € excl. VAT | H38: =(H23*(1-Calculs!$B$28/100)-Calculs!$B$31)/(H33*Hyp!$B$9) ->  | I38: € excl. VAT
A39: Cout Net kWh Eco TVAc | B39: =((B23*(1-Calculs!$B$28/100)-Calculs!$B$31)+(B23*Tool!$H$15))/(B33*Hyp!$B$9) -> 0.088 | C39: € incl. VAT | H39: =((H23*(1-Calculs!$B$28/100)-Calculs!$B$31)+(H23*Tool!$H$15))/(H33*Hyp!$B$9) ->  | I39: € incl. VAT
A40: CO2 Eco | B40: =B34*LOOKUP(Tool!H7,SourceEnergie,FactEmis) -> 2,766 | C40: kg/an | H40: =H34*LOOKUP(Tool!H7,SourceEnergie,FactEmis) ->  | I40: kg/an
A41: CO2 Eco durée de vie | B41: =B40*Hyp!B9/1000 -> 69 | C41: tonnes | H41: =H40*Hyp!B9/1000 ->  | I41: tonnes
A42: Cout CO2 évité | B42: =B23/B41 -> 347 | C42: EUR/tonne | H42: =H23/H41 ->  | I42: EUR/tonne

Sheet B-5sur7 (hidden)
A1: DHWMDayVol | B1: =Tool!H12 -> 1.4 | E1: m³/j@60°C
A2: Days of SHW consumption | B2: =52*(7-2)+1 -> 261
A3: Resulting equations (A.HWMDayVol+B)
B4: A | C4: B | D4: Result | G4: Contrainte en toiture
A5: Scoll | B5: 15.6890 | C5: 4.6157 | D5: =IF(B1=0,FALSE,B5*$B$1+C5) -> 26.1 | E5: m² | G5: Scoll max | H5: =IF(Calculs!B36,"",Calculs!B37) ->  | I5: m²
A6: Storage | B6: 1.2775 | C6: 0.0892 | D6: =IF(B1=0,FALSE,B6*$B$1+C6) -> 1.8 | E6: m³
A7: Specific production | B7: -0.1033 | C7: 516.55 | D7: =IF(B1=0,FALSE,B7*$B$1+C7) -> 516.4 | E7: kWh/m².an
A9: Simulation Results
A10: Qsol,net | B10: =D7*D5 -> 13,482 | C10: kWh/an | H10: =D7*H5 ->  | I10: kWh/an
A11: Qpar | B11: =10*D5 -> 261 | C11: kWhel/an | H11: =10*H5 ->  | I11: kWhel/an
A12: Number of tanks | B12: =IF(B1=0,0,(IF(D6<2,1,IF(D6<4,2,IF(D6<10,3,4))))) -> 1 | H12: -
A13: Vol per tank | B13: =D6/B12 -> 1.8 | C13: m³ | H13: -
A14: Vstock | B14: =B12*B13 -> 1.8 | C14: m³ | H14: =B17*H5/1000 ->  | I14: m³
A15: Total storage weight | B15: =B12*(1.1*(-0.005*B13^3 - 5.2178*B13^2 + 199.65*B13 + 26.215)+B13*1000) -> 2,253 | C15: kg | H15: =H14/B14*B15 ->  | I15: kg
A16: Total storage floor surface | B16: =B12*((448.1*LN(B13) + 1115.7)/1000)^2+0.5*(B12-1)*(448.1*LN(B13) + 1115.7)/1000 -> 1.9 | C16: m² | H16: =H14/B14*B16 ->  | I16: m²
A17: Specific storage volume | B17: =D6*1000/D5 -> 70.4 | C17: l/m²
A19: Costs
A20: Total cost excl. Storage | B20: =IF(B1=0,0,1.15*1672*D5^(1-0.1514)-(20.203*(33*D5)^(1-0.3386)+1000+33*D5)) -> 27,007 € | C20: € excl. VAT
A21: Storage material cost | B21: =(20.203*(B13*1000)^(1-0.3386))*B12 -> 2,915 € | C21: € excl. VAT
A22: Storage installation | B22: =1000+(B12*B13*1000) -> 2,839 € | C22: € excl. VAT
A23: Total cost | B23: =SUM(B20:B22) -> 32,761 € | C23: € excl. VAT | H23: =B27*H5 ->  | I23: € excl. VAT
A24: Maintenance Cost | B24: =B23*Hyp!B19 -> 82 € | C24: € excl. VAT | H24: =H23*Hyp!B19 ->  | I24: € excl. VAT
A25: Auxiliary Power Cost | B25: =B11*Hyp!B20 -> 38 € | C25: € excl. VAT | H25: =H11*Hyp!B20 ->  | I25: € excl. VAT
A26: Operational Costs | B26: =SUM(B24:B25) -> 120 € | C26: € excl. VAT | H26: =SUM(H24:H25) ->  | I26: € excl. VAT
A27: Specific Cost | B27: =B23/D5 -> 1,255 | C27: €/m² HTVA
A29: Calculated Results
A30: Qd | B30: =B1*'Energy Data'!D10*(60-'Tech Data'!B63)*365 -> 29,075 | C30: kWh/an
A31: Qaux,net | B31: =B30-B10 -> 15,593 | C31: kWh/an | H31: =B30-H10 ->  | I31: kWh/an
A32: Qpar,prim | B32: =B11/'Energy Data'!B38 -> 646 | C32: kWh/an | H32: =H11/'Energy Data'!B38 ->  | I32: kWh/an
A33: CombEco | B33: =B10/Tool!H8 -> 17,959 | C33: kWh/an | D33: =B33*(LOOKUP(Calculs!B17,SourceEnergie,FactConvDefaut)) -> 17,959 | E33: =LOOKUP(Calculs!B17,SourceEnergie,UnitéConsoAn) -> kWh/an | H33: =H10/Tool!H8 ->  | I33: kWh/an | J33: =H33*(LOOKUP(Calculs!B17,SourceEnergie,FactConvDefaut)) ->  | K33: =LOOKUP(Calculs!B17,SourceEnergie,UnitéConsoAn) -> kWh/an
A34: EprimEco | B34: =(B33-B32)/(LOOKUP(Calculs!B17,SourceEnergie,FactConvEprim)) -> 17,313 | C34: kWh/an | H34: =(H33-H32)/(LOOKUP(Calculs!B17,SourceEnergie,FactConvEprim)) ->  | I34: kWh/an
A35: Fsol | B35: =B10/(B10+B31) -> 0.46 | H35: =H10/(H10+H31) -> 
A36: Cout kWh Eco HTVA | B36: =B23/(B33*Hyp!B9) -> 0.073 | C36: €/kWh excl. VAT | H36: =H23/(H33*Hyp!B9) ->  | I36: €/kWh incl. VAT
A37: Cout kWh Eco TVAc | B37: =(B23+(B23*Tool!H15))/(B33*Hyp!B9) -> 0.088 | C37: €/kWh incl. VAT | H37: =(H23+(H23*Tool!H15))/(H33*Hyp!B9) ->  | I37: €/kWh excl. VAT
A38: Cout Net kWh Eco HTVA | B38: =(B23*(1-Calculs!$B$28/100)-Calculs!$B$31)/(B33*Hyp!$B$9) -> 0.073 | C38: € excl. VAT | H38: =(H23*(1-Calculs!$B$28/100)-Calculs!$B$31)/(H33*Hyp!$B$9) ->  | I38: € excl. VAT
A39: Cout Net kWh Eco TVAc | B39: =((B23*(1-Calculs!$B$28/100)-Calculs!$B$31)+(B23*Tool!$H$15))/(B33*Hyp!$B$9) -> 0.088 | C39: € incl. VAT | H39: =((H23*(1-Calculs!$B$28/100)-Calculs!$B$31)+(H23*Tool!$H$15))/(H33*Hyp!$B$9) ->  | I39: € incl. VAT
A40: CO2 Eco | B40: =B34*LOOKUP(Tool!H7,SourceEnergie,FactEmis) -> 3,757 | C40: kg/an | H40: =H34*LOOKUP(Tool!H7,SourceEnergie,FactEmis) ->  | I40: kg/an
A41: CO2 Eco durée de vie | B41: =B40*Hyp!B9/1000 -> 94 | C41: tonnes | H41: =H40*Hyp!B9/1000 ->  | I41: tonnes
A42: Cout CO2 évité | B42: =B23/B41 -> 349 | C42: EUR/tonne | H42: =H23/H41 ->  | I42: EUR/tonne

Sheet C-5sur7HVS (hidden)
A1: DHWMDayVol | B1: =Tool!H12 -> 1.4 | E1: m³/j@60°C
A2: Days of SHW consumption | B2: =52*(7-2)+1-61 -> 200
A3: Resulting equations (A.HWMDayVol+B)
B4: A | C4: B | D4: Result | G4: Contrainte en toiture
A5: Scoll | B5: 15.5640 | C5: 9.2486 | D5: =IF(B1=0,FALSE,B5*$B$1+C5) -> 30.6 | E5: m² | G5: Scoll max | H5: =IF(Calculs!B36,"",Calculs!B37) ->  | I5: m²
A6: Storage | B6: 1.2684 | C6: 0.2473 | D6: =IF(B1=0,FALSE,B6*$B$1+C6) -> 2.0 | E6: m³
A7: Specific production | B7: 0.4308 | C7: 390.28 | D7: =IF(B1=0,FALSE,B7*$B$1+C7) -> 390.9 | E7: kWh/m².an
A9: Simulation Results
A10: Qsol,net | B10: =D7*D5 -> 11,949 | C10: kWh/an | H10: =D7*H5 ->  | I10: kWh/an
A11: Qpar | B11: =10*D5 -> 306 | C11: kWhel/an | H11: =10*H5 ->  | I11: kWhel/an
A12: Number of tanks | B12: =IF(B1=0,0,(IF(D6<2,1,IF(D6<4,2,IF(D6<10,3,4))))) -> 1 | H12: -
A13: Vol per tank | B13: =D6/B12 -> 2.0 | C13: m³ | H13: -
A14: Vstock | B14: =B12*B13 -> 2.0 | C14: m³ | H14: =B17*H5/1000 ->  | I14: m³
A15: Total storage weight | B15: =B12*(1.1*(-0.005*B13^3 - 5.2178*B13^2 + 199.65*B13 + 26.215)+B13*1000) -> 2,427 | C15: kg | H15: =H14/B14*B15 ->  | I15: kg
A16: Total storage floor surface | B16: =B12*((448.1*LN(B13) + 1115.7)/1000)^2+0.5*(B12-1)*(448.1*LN(B13) + 1115.7)/1000 -> 2.0 | C16: m² | H16: =H14/B14*B16 ->  | I16: m²
A17: Specific storage volume | B17: =D6*1000/D5 -> 64.9 | C17: l/m²
A19: Costs
A20: Total cost excl. Storage | B20: =IF(B1=0,0,1.15*1672*D5^(1-0.1514)-(20.203*(33*D5)^(1-0.3386)+1000+33*D5)) -> 31,054 € | C20: € excl. VAT
A21: Storage material cost | B21: =(20.203*(B13*1000)^(1-0.3386))*B12 -> 3,066 € | C21: € excl. VAT
A22: Storage installation | B22: =1000+(B12*B13*1000) -> 2,985 € | C22: € excl. VAT
A23: Total cost | B23: =SUM(B20:B22) -> 37,105 € | C23: € excl. VAT | H23: =B27*H5 ->  | I23: € excl. VAT
A24: Maintenance Cost | B24: =B23*Hyp!B19 -> 93 € | C24: € excl. VAT | H24: =H23*Hyp!B19 ->  | I24: € excl. VAT
A25: Auxiliary Power Cost | B25: =B11*Hyp!B20 -> 45 € | C25: € excl. VAT | H25: =H11*Hyp!B20 ->  | I25: € excl. VAT
A26: Operational Costs | B26: =SUM(B24:B25) -> 137 € | C26: € excl. VAT | H26: =SUM(H24:H25) ->  | I26: € excl. VAT
A27: Specific Cost | B27: =B23/D5 -> 1,214 | C27: €/m² HTVA
A29: Calculated Results
A30: Qd | B30: =B1*'Energy Data'!D10*(60-'Tech Data'!B63)*365 -> 29,075 | C30: kWh/an
A31: Qaux,net | B31: =B30-B10 -> 17,126 | C31: kWh/an | H31: =B30-H10 ->  | I31: kWh/an
A32: Qpar,prim | B32: =B11/'Energy Data'!B38 -> 757 | C32: kWh/an | H32: =H11/'Energy Data'!B38 ->  | I32: kWh/an
A33: CombEco | B33: =B10/Tool!H8 -> 15,917 | C33: kWh/an | D33: =B33*(LOOKUP(Calculs!B17,SourceEnergie,FactConvDefaut)) -> 15,917 | E33: =LOOKUP(Calculs!B17,SourceEnergie,UnitéConsoAn) -> kWh/an | H33: =H10/Tool!H8 ->  | I33: kWh/an | J33: =H33*(LOOKUP(Calculs!B17,SourceEnergie,FactConvDefaut)) ->  | K33: =LOOKUP(Calculs!B17,SourceEnergie,UnitéConsoAn) -> kWh/an
A34: EprimEco | B34: =(B33-B32)/(LOOKUP(Calculs!B17,SourceEnergie,FactConvEprim)) -> 15,160 | C34: kWh/an | H34: =(H33-H32)/(LOOKUP(Calculs!B17,SourceEnergie,FactConvEprim)) ->  | I34: kWh/an
A35: Fsol | B35: =B10/(B10+B31) -> 0.41 | H35: =H10/(H10+H31) -> 
A36: Cout kWh Eco HTVA | B36: =B23/(B33*Hyp!B9) -> 0.093 | C36: €/kWh excl. VAT | H36: =H23/(H33*Hyp!B9) ->  | I36: €/kWh incl. VAT
A37: Cout kWh Eco TVAc | B37: =(B23+(B23*Tool!H15))/(B33*Hyp!B9) -> 0.113 | C37: €/kWh incl. VAT | H37: =(H23+(H23*Tool!H15))/(H33*Hyp!B9) ->  | I37: €/kWh excl. VAT
A38: Cout Net kWh Eco HTVA | B38: =(B23*(1-Calculs!$B$28/100)-Calculs!$B$31)/(B33*Hyp!$B$9) -> 0.093 | C38: € excl. VAT | H38: =(H23*(1-Calculs!$B$28/100)-Calculs!$B$31)/(H33*Hyp!$B$9) ->  | I38: € excl. VAT
A39: Cout Net kWh Eco TVAc | B39: =((B23*(1-Calculs!$B$28/100)-Calculs!$B$31)+(B23*Tool!$H$15))/(B33*Hyp!$B$9) -> 0.113 | C39: € incl. VAT | H39: =((H23*(1-Calculs!$B$28/100)-Calculs!$B$31)+(H23*Tool!$H$15))/(H33*Hyp!$B$9) ->  | I39: € incl. VAT
A40: CO2 Eco | B40: =B34*LOOKUP(Tool!H7,SourceEnergie,FactEmis) -> 3,290 | C40: kg/an | H40: =H34*LOOKUP(Tool!H7,SourceEnergie,FactEmis) ->  | I40: kg/an
A41: CO2 Eco durée de vie | B41: =B40*Hyp!B9/1000 -> 82 | C41: tonnes | H41: =H40*Hyp!B9/1000 ->  | I41: tonnes
A42: Cout CO2 évité | B42: =B23/B41 -> 451 | C42: EUR/tonne | H42: =H23/H41 ->  | I42: EUR/tonne

Sheet D-7sur7HVS (hidden)
A1: DHWMDayVol | B1: =Tool!H12 -> 1.4 | E1: m³/j@60°C
A2: Days of SHW consumption | B2: =52*7+1-61 -> 304
A3: Resulting equations (A.HWMDayVol+B)
B4: A | C4: B | D4: Result | G4: Contrainte en toiture
A5: Scoll | B5: 10.9560 | C5: 3.6168 | D5: =IF(B1=0,FALSE,B5*$B$1+C5) -> 18.6 | E5: m² | G5: Scoll max | H5: =IF(Calculs!B36,"",Calculs!B37) ->  | I5: m²
A6: Storage | B6: 0.7460 | C6: 0.2706 | D6: =IF(B1=0,FALSE,B6*$B$1+C6) -> 1.3 | E6: m³
A7: Specific production | B7: 0.3382 | C7: 472.97 | D7: =IF(B1=0,FALSE,B7*$B$1+C7) -> 473.4 | E7: kWh/m².an
A9: Simulation Results
A10: Qsol,net | B10: =D7*D5 -> 8,818 | C10: kWh/an | H10: =D7*H5 ->  | I10: kWh/an
A11: Qpar | B11: =10*D5 -> 186 | C11: kWhel/an | H11: =10*H5 ->  | I11: kWhel/an
A12: Number of tanks | B12: =IF(B1=0,0,(IF(D6<2,1,IF(D6<4,2,IF(D6<10,3,4))))) -> 1 | H12: -
A13: Vol per tank | B13: =D6/B12 -> 1.3 | C13: m³ | H13: -
A14: Vstock | B14: =B12*B13 -> 1.3 | C14: m³ | H14: =B17*H5/1000 ->  | I14: m³
A15: Total storage weight | B15: =B12*(1.1*(-0.005*B13^3 - 5.2178*B13^2 + 199.65*B13 + 26.215)+B13*1000) -> 1,596 | C15: kg | H15: =H14/B14*B15 ->  | I15: kg
A16: Total storage floor surface | B16: =B12*((448.1*LN(B13) + 1115.7)/1000)^2+0.5*(B12-1)*(448.1*LN(B13) + 1115.7)/1000 -> 1.5 | C16: m² | H16: =H14/B14*B16 ->  | I16: m²
A17: Specific storage volume | B17: =D6*1000/D5 -> 69.4 | C17: l/m²
A19: Costs
A20: Total cost excl. Storage | B20: =IF(B1=0,0,1.15*1672*D5^(1-0.1514)-(20.203*(33*D5)^(1-0.3386)+1000+33*D5)) -> 19,974 € | C20: € excl. VAT
A21: Storage material cost | B21: =(20.203*(B13*1000)^(1-0.3386))*B12 -> 2,308 € | C21: € excl. VAT
A22: Storage installation | B22: =1000+(B12*B13*1000) -> 2,293 € | C22: € excl. VAT
A23: Total cost | B23: =SUM(B20:B22) -> 24,575 € | C23: € excl. VAT | H23: =B27*H5 ->  | I23: € excl. VAT
A24: Maintenance Cost | B24: =B23*Hyp!B19 -> 61 € | C24: € excl. VAT | H24: =H23*Hyp!B19 ->  | I24: € excl. VAT
A25: Auxiliary Power Cost | B25: =B11*Hyp!B20 -> 27 € | C25: € excl. VAT | H25: =H11*Hyp!B20 ->  | I25: € excl. VAT
A26: Operational Costs | B26: =SUM(B24:B25) -> 89 € | C26: € excl. VAT | H26: =SUM(H24:H25) ->  | I26: € excl. VAT
A27: Specific Cost | B27: =B23/D5 -> 1,319 | C27: €/m² HTVA
A29: Calculated Results
A30: Qd | B30: =B1*'Energy Data'!D10*(60-'Tech Data'!B63)*365 -> 29,075 | C30: kWh/an
A31: Qaux,net | B31: =B30-B10 -> 20,257 | C31: kWh/an | H31: =B30-H10 ->  | I31: kWh/an
A32: Qpar,prim | B32: =B11/'Energy Data'!B38 -> 461 | C32: kWh/an | H32: =H11/'Energy Data'!B38 ->  | I32: kWh/an
A33: CombEco | B33: =B10/Tool!H8 -> 11,746 | C33: kWh/an | D33: =B33*(LOOKUP(Calculs!B17,SourceEnergie,FactConvDefaut)) -> 11,746 | E33: =LOOKUP(Calculs!B17,SourceEnergie,UnitéConsoAn) -> kWh/an | H33: =H10/Tool!H8 ->  | I33: kWh/an | J33: =H33*(LOOKUP(Calculs!B17,SourceEnergie,FactConvDefaut)) ->  | K33: =LOOKUP(Calculs!B17,SourceEnergie,UnitéConsoAn) -> kWh/an
A34: EprimEco | B34: =(B33-B32)/(LOOKUP(Calculs!B17,SourceEnergie,FactConvEprim)) -> 11,285 | C34: kWh/an | H34: =(H33-H32)/(LOOKUP(Calculs!B17,SourceEnergie,FactConvEprim)) ->  | I34: kWh/an
A35: Fsol | B35: =B10/(B10+B31) -> 0.30 | H35: =H10/(H10+H31) -> 
A36: Cout kWh Eco HTVA | B36: =B23/(B33*Hyp!B9) -> 0.084 | C36: €/kWh excl. VAT | H36: =H23/(H33*Hyp!B9) ->  | I36: €/kWh incl. VAT
A37: Cout kWh Eco TVAc | B37: =(B23+(B23*Tool!H15))/(B33*Hyp!B9) -> 0.101 | C37: €/kWh incl. VAT | H37: =(H23+(H23*Tool!H15))/(H33*Hyp!B9) ->  | I37: €/kWh excl. VAT
A38: Cout Net kWh Eco HTVA | B38: =(B23*(1-Calculs!$B$28/100)-Calculs!$B$31)/(B33*Hyp!$B$9) -> 0.084 | C38: € excl. VAT | H38: =(H23*(1-Calculs!$B$28/100)-Calculs!$B$31)/(H33*Hyp!$B$9) ->  | I38: € excl. VAT
A39: Cout Net kWh Eco TVAc | B39: =((B23*(1-Calculs!$B$28/100)-Calculs!$B$31)+(B23*Tool!$H$15))/(B33*Hyp!$B$9) -> 0.101 | C39: € incl. VAT | H39: =((H23*(1-Calculs!$B$28/100)-Calculs!$B$31)+(H23*Tool!$H$15))/(H33*Hyp!$B$9) ->  | I39: € incl. VAT
A40: CO2 Eco | B40: =B34*LOOKUP(Tool!H7,SourceEnergie,FactEmis) -> 2,449 | C40: kg/an | H40: =H34*LOOKUP(Tool!H7,SourceEnergie,FactEmis) ->  | I40: kg/an
A41: CO2 Eco durée de vie | B41: =B40*Hyp!B9/1000 -> 61 | C41: tonnes | H41: =H40*Hyp!B9/1000 ->  | I41: tonnes
A42: Cout CO2 évité | B42: =B23/B41 -> 401 | C42: EUR/tonne | H42: =H23/H41 ->  | I42: EUR/tonne
